{"text_format":"1","workbook":"xlsx","n_sheets":25,"sheets":["Tela 1","Tela 2","Tela 3","Tela 4","NTD 6.05","Rural 1","Rural 2","Rural 3","Guia 1","Guia 2","Guia 3","Tela 5-Mesmo lado","Tela 6-Outro lado","Tela 7 - Sem rede ","Poli1","Poli2","Poli3","P1_1","P1_2","P1_3","POSTE COMPAC_TR","Poste P1","Poste Poli ","Apoio","VISTA CX TR"],"not_rendered":{"charts":0,"images":13,"macros":1,"external_links":0,"defined_names":8,"comments":1,"pivot_tables":0},"unopened":[],"bounds":{"document_bytes":16777216,"sheet_cells":100000,"rows_first":2000,"rows_last":500,"rows_between":2000,"halvings":0,"cell_chars":16384,"cell_head_chars":4096},"cells_cut":0,"cells_raw":0,"read":"whole","date_system":"1900"}

{"sheet":"Tela 1","index":0,"n_rows":37,"n_cols":9,"rows_kept":37,"cut":false,"hidden":false,"merged":[[35,8,36,8],[36,2,36,6],[37,8,37,9],[1,5,1,8],[7,2,10,8],[12,2,15,8],[17,2,18,8],[20,2,21,6],[35,7,36,7]]}
[]
[null,null,null,null,null,"Posto Transformador Aéreo Simplificado"]
[]
[]
[null,null,"Olá,"]
[null,null,"Seja bem-vindo(a)!"]
[]
[null,null,"Esse é um formulário desenvolvido pela Neoenergia Brasília, para simplificar a apresentação de projetos de Posto Transformação Particular Aéreo - Interligação Neoenergia Brasília, para rede de distribuição de 13,8 kV. Norma NTD 6.05."]
[]
[]
[]
[]
[null,null,"Navegue pelo formulário, seguindo as orientações e preenchendo as informações solicitadas, ao final, ser-lhe-á apresentado um resumo das instalações."]
[]
[]
[]
[]
[null,null,"O processo é simples e rápido!"]
[]
[]
[null,null,"Pronto(a) para iniciar o preenchimento?"]
[]
[]
[]
[]
[]
[]
[]
[]
[]
[]
[]
[]
[]
[]
[null,null,null,null,null,null,null,null,"Ver. 1.0"]
[null,null,"*Nota: Compatível com Excel 2013 e versões superiores"]

{"sheet":"Tela 2","index":1,"n_rows":43,"n_cols":15,"rows_kept":43,"cut":false,"hidden":false,"merged":[[1,5,1,15],[4,1,6,4],[4,5,6,15],[2,1,3,15],[8,1,8,6],[8,7,8,9],[8,10,8,15],[7,1,7,4],[7,5,7,15],[9,1,9,6],[10,10,10,15],[9,7,9,9],[9,10,9,15],[10,1,10,6],[10,7,10,9],[11,1,11,6],[11,7,11,9],[11,10,11,15],[14,1,14,6],[14,7,14,9],[14,10,14,15],[13,7,13,9],[13,1,13,6],[13,10,13,15],[12,1,12,6],[12,7,12,9],[12,10,12,15],[15,1,15,6],[15,7,15,9],[15,10,15,15],[16,1,16,6],[16,7,16,9],[16,10,16,15],[21,11,21,15],[17,1,17,15],[18,1,18,4],[18,5,18,12],[18,14,18,15],[19,1,19,4],[19,5,19,15],[25,5,25,15],[20,1,20,4],[20,5,20,7],[20,8,20,10],[20,11,20,15],[25,1,25,4],[21,1,21,4],[21,5,21,7],[22,1,22,4],[22,5,22,13],[23,1,23,4],[23,5,23,10],[23,11,23,13],[23,14,23,15],[24,1,24,15],[21,8,21,10],[28,1,28,4],[28,5,28,7],[28,8,28,10],[28,11,28,15],[26,1,26,4],[26,5,26,15],[27,1,27,4],[27,5,27,7],[27,8,27,10],[27,11,27,15],[29,1,29,4],[29,5,29,7],[29,8,29,10],[29,11,29,15],[30,1,30,15],[31,1,32,4],[31,5,32,6],[31,12,32,13],[31,14,32,15],[31,7,32,11],[33,1,33,15],[38,1,38,15],[42,1,45,7],[34,1,37,15],[41,8,45,15],[39,8,40,15],[39,1,41,7]]}
[]
[null,null,null,null,null,"Posto Transformador Aéreo - Interligação Neoenergia Brasília"]
[null,"Dados Básicos do Serviço"]
[]
[null,"Resumo do Serviço :"]
[]
[]
[null,"Tipo de Serviço:"]
[null,"Trata-se de único e exclusivo ponto de consumo na propriedade (ramal de ligação único)?",null,null,null,null,null,null,null,null,{"$f":"IF(H9=\"Sim\",\"OK\",IF(H9=\"Não\",\"Reprovado! Não pode haver 2 ramais de ligação na mesma propriedade!\",\"\"))","v":""}]
[null,"Formulário de Declaração de Carga e Demanda anexada e devidamente preenchido?",null,null,null,null,null,null,null,null,{"$f":"IF(H10=\"Sim\",\"OK\",IF(H10=\"Não\",\"Reprovado! Formulário deverá ser enviado!\",\"\"))","v":""}]
[null,"Respeitadas os afastamentos minimos das edificações e divisas? Norma NTD 6.05",null,null,null,null,null,null,null,null,{"$f":"IF(H11=\"Sim\",\"OK\",IF(H11=\"Não\",\"Reprovado! Todas as distâncias deverão ser respeitadas\",\"\"))","v":""}]
[null,"As informações apresentadas foram validadas por meio de vistoria no local?",null,null,null,null,null,null,null,null,{"$f":"IF(H12=\"Sim\",\"OK\",IF(H12=\"Não\",\"Reprovado! Deverá efetuar levantamento no local!\",\"\"))","v":""}]
[null,"Optante Grupo B (Trafo até 112,5 kVA)?",null,null,null,null,null,null,null,null,{"$f":"IF(H13=\"Não\",\"Informar Demanda Contratada (kW)\",IF(H13=\"Sim\",\"Informar Demanda Calculada (KVA)\",\"\"))","v":""}]
[null,"Em caso de localidade rural, planta de situação do terreno e planta de locação do transformador enviadas em anexo?",null,null,null,null,null,null,null,null,{"$f":"IF(H14=\"Área urbana\",\"OK\",IF(H14=\"Não\",\"Reprovado! Anexar plantas!\",IF(H14=\"Sim\",\"OK\",\"\")))","v":""}]
[null,"Existe gerador proposto nas instalações?",null,null,null,null,null,null,null,null,{"$f":"IF(H15=\"Não\",\"OK\",IF(H15=\"Sim\",\"Não poderá utilizar o formulário! Apresentar projeto completo!\",\"\"))","v":""}]
[null,"Instalações internas ficam apenas dentro dos limites da propriedade?",null,null,null,null,null,null,null,null,{"$f":"IF(H16=\"Sim\",\"OK\",IF(H16=\"Não\",\"Reprovado!\",\"\"))","v":""}]
[null,"Enviada ART/TRT/Outro (Projeto, Aterramento...):",null,null,null,null,null,null,null,null,{"$f":"IF(H17=\"Sim\",\"OK\",IF(H17=\"Não\",\"Reprovado!\",\"\"))","v":""}]
[null,"Dados da Unidade Consumidora"]
[null,"Responsável Pela U.C.",null,null,null,null,null,null,null,null,null,null,null,"UC:"]
[null,"E-mail"]
[null,"RG:",null,null,null,null,null,null,"CPF/CNPJ:"]
[null,"Telefone fixo",null,null,null,null,null,null,"Celular:"]
[null,"Endereço",null,null,null,null,null,null,null,null,null,null,null,null,"Nº."]
[null,"Localidade",null,null,null,null,null,null,null,null,null,"UF"]
[null,"Dados do Responsável Técnico"]
[null,"Responsável Técnico:"]
[null,"E-mail"]
[null,"Telefone fixo",null,null,null,null,null,null,"Celular:"]
[null,"Conselho de Classe:",null,null,null,null,null,null,"Nº CREA/CFT:"]
[null,"Formação",null,null,null,null,null,null,"Nº da ART/TRT:"]
[null,"Transformador Retirado  (Se houver)"]
[null,"Potência do Equipamento",null,null,null,null,null,"Secundário: 220/380V",null,null,null,null,"Elo"]
[]
[null,"Observações/Comentários adicionais"]
[null,"Todas as normas da NEOENERGIA Brasília estão sendo observadas, sobretudo a norma NTD 6.05. Condições técnicas e de segurança estão ok."]
[]
[]
[]
[null,"Declaração e Assinatura"]
[null,"Declaro verdadeiras todas as inforamções prestadas nesse memorial.",null,null,null,null,null,null,"Assinatura do Responsável técnico"]
[]
[]
[null,"_________________/_____/_____/_____"]

{"sheet":"Tela 3","index":2,"n_rows":49,"n_cols":7,"rows_kept":49,"cut":false,"hidden":false,"merged":[[2,0,3,6],[4,1,4,4],[5,1,5,4],[9,1,9,4],[0,0,1,2],[0,3,1,6],[10,1,10,4],[11,1,11,4],[6,1,6,4],[7,1,7,4],[8,1,8,4],[15,1,15,4],[16,1,16,4],[17,1,17,4],[12,1,12,4],[13,1,13,4],[14,1,14,4],[21,1,21,4],[22,1,22,4],[23,1,23,4],[18,1,18,4],[19,1,19,4],[20,1,20,4],[27,1,27,4],[28,1,28,4],[29,1,29,4],[24,1,24,4],[25,1,25,4],[26,1,26,4],[33,1,33,4],[34,1,34,4],[35,1,35,4],[30,1,30,4],[31,1,31,4],[32,1,32,4],[39,1,39,4],[40,1,40,4],[41,1,41,4],[36,1,36,4],[37,1,37,4],[38,1,38,4],[48,0,51,6],[47,1,47,4],[45,1,45,4],[46,1,46,4],[42,1,42,4],[43,1,43,4],[44,1,44,4]]}
[null,null,null,"Posto Transformador Aéreo - Interligação Neoenergia Brasília"]
[]
["Declaração de Carga"]
[]
["Qtde","Descrição do Equipamento/Aparelho/Motor, etc.",null,null,null,"Pot. Unitária (W)","Pot. Total (W)"]
[null,null,null,null,null,null,{"$f":"A6*F6","v":0}]
[null,null,null,null,null,null,0]
[null,null,null,null,null,null,0]
[null,null,null,null,null,null,0]
[null,null,null,null,null,null,0]
[null,null,null,null,null,null,0]
[null,null,null,null,null,null,0]
[null,null,null,null,null,null,0]
[null,null,null,null,null,null,0]
[null,null,null,null,null,null,0]
[null,null,null,null,null,null,0]
[null,null,null,null,null,null,0]
[null,null,null,null,null,null,0]
[null,null,null,null,null,null,0]
[null,null,null,null,null,null,0]
[null,null,null,null,null,null,0]
[null,null,null,null,null,null,0]
[null,null,null,null,null,null,0]
[null,null,null,null,null,null,0]
[null,null,null,null,null,null,0]
[null,null,null,null,null,null,0]
[null,null,null,null,null,null,0]
[null,null,null,null,null,null,0]
[null,null,null,null,null,null,0]
[null,null,null,null,null,null,0]
[null,null,null,null,null,null,0]
[null,null,null,null,null,null,0]
[null,null,null,null,null,null,0]
[null,null,null,null,null,null,0]
[null,null,null,null,null,null,0]
[null,null,null,null,null,null,0]
[null,null,null,null,null,null,0]
[null,null,null,null,null,null,0]
[null,null,null,null,null,null,0]
[null,null,null,null,null,null,0]
[null,null,null,null,null,null,0]
[null,null,null,null,null,null,0]
[null,null,null,null,null,null,0]
[null,null,null,null,null,null,0]
[null,null,null,null,null,null,0]
[null,null,null,null,null,null,0]
[null,null,null,null,null,null,0]
[null,null,null,null,null,"Total (KW)",{"$f":"(SUM((G6:G47))/1000)","v":0}]
["Caso as linhas forem insuficientes para declaração de carga, enviar em documento anexo ao processo, no formato \"Doc\" ou \"Pdf\", com o nome \"Declaração de Carga\"."]

{"sheet":"Tela 4","index":3,"n_rows":30,"n_cols":6,"rows_kept":30,"cut":false,"hidden":false,"merged":[[29,0,29,3],[29,4,29,5],[24,0,24,3],[24,4,24,5],[17,0,18,3],[22,0,22,3],[22,4,22,5],[26,0,27,3],[26,4,27,5],[20,0,20,3],[20,4,20,5],[17,4,18,5],[15,0,15,3],[15,4,15,5],[5,0,5,3],[5,4,5,5],[9,0,9,3],[11,0,11,3],[11,4,11,5],[13,0,13,3],[13,4,13,5],[0,0,1,2],[0,3,1,6],[2,0,3,6],[7,0,7,3],[7,4,7,5]]}
[null,null,null,"Posto Transformador Aéreo - Interligação Neoenergia Brasília"]
[]
["Parâmetros  para dimensionamento do Ramal de Entrada"]
[]
[]
["Tensão Primário/Secundário (kV):",null,null,null,"13,8/0,38kV"]
[]
["Grupo B Optante?:"]
[]
["Demanda Calculada/Contratada:",null,null,null,null,{"$f":"IF(E8=\"sim\",\"kVA\",IF(E8=\"Não\",\"kW\",\"\"))","v":""}]
[]
["Fator de potência"]
[]
["Potência Nominal do Transformador (KVA):",null,null,null,112.5]
[]
["Corrente da proteção:"]
[]
["Tipo de Isolação do  condutor dor ramal de entrada (BT)"]
[]
[]
["Condutores:"]
[]
["Tipo de caixa de medição"]
[]
["Tipo de Poste "]
[]
["Ramal de ligação cruzará  a rua ou  sómente a calçada?"]
[]
[]
["Comprimento da Haste de aterramento (m)"]

{"sheet":"NTD 6.05","index":4,"n_rows":25,"n_cols":4,"rows_kept":25,"cut":false,"hidden":false,"merged":[[0,0,0,2],[0,3,0,6],[1,0,1,14],[24,0,24,14],[47,1,48,6]]}
[null,null,null,"Posto Transformador Aéreo - Interligação Neoenergia Brasília"]
["Dimensionamento dos Elos "]
[]
[]
[]
[]
[]
[]
[]
[]
[]
[]
[]
[]
[]
[]
[]
[]
[]
[]
[]
[]
[]
[]
["Dimensionamento da proteção geral e dos condutores de baixa tensão "]

{"sheet":"Rural 1","index":5,"n_rows":184,"n_cols":65,"rows_kept":184,"cut":false,"hidden":false,"merged":[[1,1,1,83],[2,1,7,83],[48,1,51,83],[54,40,58,41],[56,6,75,7],[57,22,57,31],[57,49,57,53],[58,35,58,39],[59,16,59,21],[59,55,60,59],[60,13,60,24],[60,29,61,34],[60,36,61,39],[60,40,61,53],[60,68,61,70],[64,9,64,12],[64,18,64,21],[64,31,65,36],[65,8,65,13],[65,17,65,22],[104,21,107,41],[104,42,107,62],[66,64,67,65],[66,66,67,68],[68,19,69,27],[69,64,70,66],[70,17,71,21],[73,56,76,65],[77,25,77,27],[78,42,79,54],[86,28,88,51],[89,1,92,83],[97,21,100,62],[134,21,137,41],[134,42,137,62],[140,21,147,41],[140,42,147,62],[110,21,113,41],[110,42,113,62],[116,21,119,41],[116,42,119,62],[122,21,125,41],[122,42,125,62],[8,1,47,83],[187,1,194,83],[168,21,171,41],[168,42,171,62],[174,21,177,41],[174,42,177,62],[178,57,182,63],[183,1,186,83],[150,21,153,41],[150,42,153,62],[156,21,159,41],[156,42,159,62],[162,21,165,41],[162,42,165,62],[128,21,131,41],[128,42,131,62]]}
[]
[null,"Posto Transformador Aéreo - Interligação Neoenergia Brasília "]
[null,"PLANTA SITUAÇÃO/LOCALIZAÇÃO"]
[]
[]
[]
[]
[]
[null,"\nEncaminhar plantas de situação e locação em anexo aos arquivos, contendo as seguintes informações;\n1 - Limites do lote \n2 - Identificação da rua e terrenos adjacentes \n3- Rede elétrica existente \n4 - Referência elétrica da rede existente(número de chave) \n5 - Coordenadas geográficas do poste do transformador \n6 - Posição da subestação com indicação dos afastamentos, a rede elétrica, e ao limite do lote  "]
[]
[]
[]
[]
[]
[]
[]
[]
[]
[]
[]
[]
[]
[]
[]
[]
[]
[]
[]
[]
[]
[]
[]
[]
[]
[]
[]
[]
[]
[]
[]
[]
[]
[]
[]
[]
[]
[]
[]
[null,"DIAGRAMA UNIFILAR (MT/BT)"]
[]
[]
[]
[]
[]
[]
[]
[]
[null,null,null,null,null,null,null,null,null,null,null,null,null,null,null,null,null,null,null,null,null,null,{"$f":"CONCATENATE('Tela 4'!E14, \"KVA\",\" - \",'Tela 4'!E6)","v":"112,5KVA - 13,8/0,38kV"}]
[]
[null,null,null,null,null,null,null,null,null,null,null,null,null,null,null,null,null,null,null,null,null,null,null,null,null,null,null,null,null,null,null,null,null,null,null,null,null,null,null,null,null,null,null,null,null,null,null,null,null,null,null,null,null,null,null,{"$f":"CONCATENATE(Apoio!B4, \"A\")","v":"0A"}]
[null,null,null,null,null,null,null,null,null,null,null,null,null,{"$f":"Apoio!G4","v":"6K"},null,null,null,null,null,null,null,null,null,null,null,null,null,null,null,null,null,null,null,null,null,null,{"$f":"CONCATENATE(Apoio!D10, \"A\")","v":{"$error":"#N/A"}},null,null,null,{"$f":"Apoio!B7","v":0}]
[]
[]
[]
[null,null,null,null,null,null,null,null,null,"3#50",null,null,null,null,null,null,null,null,"3#50",null,null,null,null,null,null,null,null,null,null,null,null,{"$f":"Apoio!C7","v":""}]
[null,null,null,null,null,null,null,null,"COBERTO ",null,null,null,null,null,null,null,null,"COBERTO"]
[]
[]
[]
[null,null,null,null,null,null,null,null,null,null,null,null,null,null,null,null,null,null,null,null,null,null,null,null,null,null,null,null,null,null,null,null,null,null,null,null,null,null,null,null,null,null,null,null,null,null,null,null,null,null,null,null,null,null,null,null,null,null,null,null,null,null,null,null,"3*20A"]
[null,null,null,null,null,null,null,null,null,null,null,null,null,null,null,null,null,"12Kv - 10kA"]
[]
[]
[null,null,null,null,null,null,null,null,null,null,null,null,null,null,null,null,null,null,null,null,null,null,null,null,null,null,null,null,null,null,null,null,null,null,null,null,null,null,null,null,null,null,null,null,null,null,null,null,null,null,null,null,null,null,null,null,"DPS 242V/5kA(mínimo)"]
[]
[]
[]
[null,null,null,null,null,null,null,null,null,null,null,null,null,null,null,null,null,null,null,null,null,null,null,null,null,"#35"]
[null,null,null,null,null,null,null,null,null,null,null,null,null,null,null,null,null,null,null,null,null,null,null,null,null,null,null,null,null,null,null,null,null,null,null,null,null,null,null,null,null,null,"Cordoalha de cobre nú 50 mm²"]
[]
[]
[]
[]
[]
[]
[]
[null,null,null,null,null,null,null,null,null,null,null,null,null,null,null,null,null,null,null,null,null,null,null,null,null,null,null,null,{"$f":"CONCATENATE(\"6xHASTE COPPERWELD ∅ 5/8 \", 'Tela 4'!E30,\"m\",\" INTERLIGADAS ENTRE SI COM DISTÂNCIA DE \",Apoio!A10,\" METROS UMA DA OUTRA.\", )","v":"6xHASTE COPPERWELD ∅ 5/8 m INTERLIGADAS ENTRE SI COM DISTÂNCIA DE 0 METROS UMA DA OUTRA."}]
[]
[]
[null,"DIMENSIONAMENTO AUTOMÁTICO DO RAMAL DE ENTRADA (CONFORME PARÂMETROS INFORMADOS)"]
[]
[]
[]
[]
[]
[]
[]
[null,null,null,null,null,null,null,null,null,null,null,null,null,null,null,null,null,null,null,null,null,"RESUMO DAS INSTALAÇÕES"]
[]
[]
[]
[]
[]
[]
[null,null,null,null,null,null,null,null,null,null,null,null,null,null,null,null,null,null,null,null,null,"Potência do Transformador:",null,null,null,null,null,null,null,null,null,null,null,null,null,null,null,null,null,null,null,null,{"$f":"CONCATENATE('Tela 4'!E14, \"KVA\",\" - \",'Tela 4'!E6)","v":"112,5KVA - 13,8/0,38kV"}]
[]
[]
[]
[]
[]
[null,null,null,null,null,null,null,null,null,null,null,null,null,null,null,null,null,null,null,null,null,"Elo Fusível de Proteção:",null,null,null,null,null,null,null,null,null,null,null,null,null,null,null,null,null,null,null,null,{"$f":"IFERROR(VLOOKUP('Tela 4'!E14,Apoio!$A$18:$M$29,3,0),\"\")","v":"6K"}]
[]
[]
[]
[]
[]
[null,null,null,null,null,null,null,null,null,null,null,null,null,null,null,null,null,null,null,null,null,"Disjuntor de proteção baixa tensão (BT)",null,null,null,null,null,null,null,null,null,null,null,null,null,null,null,null,null,null,null,null,{"$f":"IFERROR(VLOOKUP('Tela 4'!E14,Apoio!$A$18:$L$226,2,0),\"\")","v":150}]
[]
[]
[]
[]
[]
[null,null,null,null,null,null,null,null,null,null,null,null,null,null,null,null,null,null,null,null,null,"Condutor do ramal de entrada aéreo ",null,null,null,null,null,null,null,null,null,null,null,null,null,null,null,null,null,null,null,null,"Cabo coberto 50mm²"]
[]
[]
[]
[]
[]
[null,null,null,null,null,null,null,null,null,null,null,null,null,null,null,null,null,null,null,null,null,"Isolação do Condutor",null,null,null,null,null,null,null,null,null,null,null,null,null,null,null,null,null,null,null,null,{"$f":"'Tela 4'!E18","v":0}]
[]
[]
[]
[]
[]
[null,null,null,null,null,null,null,null,null,null,null,null,null,null,null,null,null,null,null,null,null,"Eletroduto (diâmetro mínimo em mm)",null,null,null,null,null,null,null,null,null,null,null,null,null,null,null,null,null,null,null,null,{"$f":"Apoio!E7","v":""}]
[]
[]
[]
[]
[]
[null,null,null,null,null,null,null,null,null,null,null,null,null,null,null,null,null,null,null,null,null,"Ligação do Transformador",null,null,null,null,null,null,null,null,null,null,null,null,null,null,null,null,null,null,null,null,{"$f":"IF(13.8,\"Primário: Delta - Secundário: Estrela Aterrada\",)","v":"Primário: Delta - Secundário: Estrela Aterrada"}]
[]
[]
[]
[]
[]
[]
[]
[]
[]
[null,null,null,null,null,null,null,null,null,null,null,null,null,null,null,null,null,null,null,null,null,"TAPs Primários",null,null,null,null,null,null,null,null,null,null,null,null,null,null,null,null,null,null,null,null,"13,8/13,2/12,6"]
[]
[]
[]
[]
[]
[null,null,null,null,null,null,null,null,null,null,null,null,null,null,null,null,null,null,null,null,null,"Classe de Tensão",null,null,null,null,null,null,null,null,null,null,null,null,null,null,null,null,null,null,null,null," 15 KV"]
[]
[]
[]
[]
[]
[null,null,null,null,null,null,null,null,null,null,null,null,null,null,null,null,null,null,null,null,null,"Tipo do Poste ",null,null,null,null,null,null,null,null,null,null,null,null,null,null,null,null,null,null,null,null,{"$f":"'Tela 4'!E25","v":0}]
[]
[]
[]
[]
[]
[null,null,null,null,null,null,null,null,null,null,null,null,null,null,null,null,null,null,null,null,null,"Barramento de cobre",null,null,null,null,null,null,null,null,null,null,null,null,null,null,null,null,null,null,null,null,{"$f":"Apoio!C10","v":{"$error":"#N/A"}}]
[]
[]
[]
[]
[]
[null,null,null,null,null,null,null,null,null,null,null,null,null,null,null,null,null,null,null,null,"Tipo","Fusível",null,null,null,null,null,null,null,null,null,null,null,null,null,null,null,null,null,null,null,null,{"$f":"Apoio!D10","v":{"$error":"#N/A"}}]
[]
[]
[]
[]
[]
[]
[null,null,null,null,null,null,null,null,null,null,null,null,null,null,null,null,null,null,null,null,null,"Detalhes Construtivos (Posto Transformador)"]
[]
[null,"OBSERVAÇÕES DO PROJETISTA:"]

{"sheet":"Rural 2","index":6,"n_rows":173,"n_cols":59,"rows_kept":173,"cut":false,"hidden":false,"merged":[[48,1,51,83],[56,6,75,7],[1,1,1,17],[1,18,1,83],[2,1,7,83],[58,32,58,39],[59,35,60,45],[60,29,61,31],[8,1,47,83],[87,44,89,69],[97,21,100,62],[104,21,107,41],[104,42,107,62],[65,50,66,53],[71,29,72,33],[65,19,67,23],[65,31,67,35],[65,44,66,49],[70,58,71,68],[66,58,67,63],[110,21,113,41],[110,42,113,62],[116,21,119,41],[116,42,119,62],[90,1,93,83],[150,21,153,41],[150,42,153,62],[156,21,159,41],[156,42,159,62],[140,21,147,41],[140,42,147,62],[122,21,125,41],[122,42,125,62],[128,21,131,41],[128,42,131,62],[134,21,137,41],[134,42,137,62],[162,21,165,41],[162,42,165,62],[168,21,171,63],[172,1,175,83],[176,1,184,83]]}
[]
[null,null,null,null,null,null,null,null,null,null,null,null,null,null,null,null,null,null,"Posto Transformador Aéreo - Interligação Neoenergia Brasília "]
[null,"PLANTA SITUAÇÃO/LOCALIZAÇÃO"]
[]
[]
[]
[]
[]
[null,"Encaminhar plantas de situação e locação em anexo aos arquivos, contendo as seguintes informações;\n1 - Limites do lote \n2 - Identificação da rua e terrenos adjacentes \n3- Rede elétrica existente \n4 - Referência elétrica da rede existente(número de chave) \n5 - Coordenadas geográficas do poste do transformador \n6 - Posição da subestação com indicação dos afastamentos, a rede elétrica, e ao limite do lote"]
[]
[]
[]
[]
[]
[]
[]
[]
[]
[]
[]
[]
[]
[]
[]
[]
[]
[]
[]
[]
[]
[]
[]
[]
[]
[]
[]
[]
[]
[]
[]
[]
[]
[]
[]
[]
[]
[]
[]
[null,"DIAGRAMA UNIFILAR (MT/BT)"]
[]
[]
[]
[]
[]
[]
[]
[]
[]
[]
[null,null,null,null,null,null,null,null,null,null,null,null,null,null,null,null,null,null,null,null,null,null,null,null,null,null,null,null,null,null,null,null,null,null,null,{"$f":"AQ105","v":"112,5KVA - 13,8/0,38kV"}]
[null,null,null,null,null,null,null,null,null,null,null,null,null,null,null,null,null,null,null,null,null,null,null,null,null,null,null,null,null,{"$f":"Apoio!G4","v":"6K"}]
[]
[]
[]
[]
[null,null,null,null,null,null,null,null,null,null,null,null,null,null,null,null,null,null,null,"3#50 COBERTO ",null,null,null,null,null,null,null,null,null,null,null,"3#50 COBERTO ",null,null,null,null,null,null,null,null,null,null,null,null,{"$f":"Apoio!C7","v":""},null,null,null,null,null,{"$f":"CONCATENATE(Apoio!B4, \"A\")","v":"0A"}]
[null,null,null,null,null,null,null,null,null,null,null,null,null,null,null,null,null,null,null,null,null,null,null,null,null,null,null,null,null,null,null,null,null,null,null,null,null,null,null,null,null,null,null,null,null,null,null,null,null,null,null,null,null,null,null,null,null,null,"3x DISJ 20A"]
[]
[]
[]
[null,null,null,null,null,null,null,null,null,null,null,null,null,null,null,null,null,null,null,null,null,null,null,null,null,null,null,null,null,null,null,null,null,null,null,null,null,null,null,null,null,null,null,null,null,null,null,null,null,null,null,null,null,null,null,null,null,null,"DPS 242V/5kA(mínimo)"]
[null,null,null,null,null,null,null,null,null,null,null,null,null,null,null,null,null,null,null,null,null,null,null,null,null,null,null,null,null,"12Kv - 10kA"]
[]
[]
[]
[]
[]
[]
[]
[]
[]
[]
[]
[]
[]
[]
[]
[null,null,null,null,null,null,null,null,null,null,null,null,null,null,null,null,null,null,null,null,null,null,null,null,null,null,null,null,null,null,null,null,null,null,null,null,null,null,null,null,null,null,null,null,{"$f":"CONCATENATE(\"6xHASTE COPPERWELD ∅ 5/8 \", 'Tela 4'!E30,\"m\",\" INTERLIGADAS ENTRE SI COM DISTÂNCIA DE \",Apoio!A10,\" METROS UMA DA OUTRA\", )","v":"6xHASTE COPPERWELD ∅ 5/8 m INTERLIGADAS ENTRE SI COM DISTÂNCIA DE 0 METROS UMA DA OUTRA"}]
[]
[]
[null,"DIMENSIONAMENTO AUTOMÁTICO DO RAMAL DE ENTRADA (CONFORME PARÂMETROS INFORMADOS)"]
[]
[]
[]
[]
[]
[]
[null,null,null,null,null,null,null,null,null,null,null,null,null,null,null,null,null,null,null,null,null,"RESUMO DAS INSTALAÇÕES"]
[]
[]
[]
[]
[]
[]
[null,null,null,null,null,null,null,null,null,null,null,null,null,null,null,null,null,null,null,null,null,"Potência do Transformador:",null,null,null,null,null,null,null,null,null,null,null,null,null,null,null,null,null,null,null,null,{"$f":"CONCATENATE('Tela 4'!E14, \"KVA\",\" - \",'Tela 4'!E6)","v":"112,5KVA - 13,8/0,38kV"}]
[]
[]
[]
[]
[]
[null,null,null,null,null,null,null,null,null,null,null,null,null,null,null,null,null,null,null,null,null,"Elo Fusível de Proteção:",null,null,null,null,null,null,null,null,null,null,null,null,null,null,null,null,null,null,null,null,{"$f":"Apoio!G4","v":"6K"}]
[]
[]
[]
[]
[]
[null,null,null,null,null,null,null,null,null,null,null,null,null,null,null,null,null,null,null,null,null,"Disjuntor de proteção baixa tensão (BT)",null,null,null,null,null,null,null,null,null,null,null,null,null,null,null,null,null,null,null,null,{"$f":"Apoio!B4","v":0}]
[]
[]
[]
[]
[]
[null,null,null,null,null,null,null,null,null,null,null,null,null,null,null,null,null,null,null,null,null,"Condutor do ramal de entrada aéreo ",null,null,null,null,null,null,null,null,null,null,null,null,null,null,null,null,null,null,null,null,"Cabo coberto 50mm²"]
[]
[]
[]
[]
[]
[null,null,null,null,null,null,null,null,null,null,null,null,null,null,null,null,null,null,null,null,null,"Isolação do Condutor",null,null,null,null,null,null,null,null,null,null,null,null,null,null,null,null,null,null,null,null,{"$f":"'Tela 4'!E18","v":0}]
[]
[]
[]
[]
[]
[null,null,null,null,null,null,null,null,null,null,null,null,null,null,null,null,null,null,null,null,null,"Eletroduto (diâmetro mínimo em mm)",null,null,null,null,null,null,null,null,null,null,null,null,null,null,null,null,null,null,null,null,{"$f":"Apoio!E7","v":""}]
[]
[]
[]
[]
[]
[null,null,null,null,null,null,null,null,null,null,null,null,null,null,null,null,null,null,null,null,null,"Ligação do Transformador",null,null,null,null,null,null,null,null,null,null,null,null,null,null,null,null,null,null,null,null,{"$f":"IF(13.8,\"Primário: Delta - Secundário: Estrela Aterrada\",)","v":"Primário: Delta - Secundário: Estrela Aterrada"}]
[]
[]
[]
[]
[]
[]
[]
[]
[]
[null,null,null,null,null,null,null,null,null,null,null,null,null,null,null,null,null,null,null,null,null,"TAPs Primários",null,null,null,null,null,null,null,null,null,null,null,null,null,null,null,null,null,null,null,null,"13,8/13,2/12,6"]
[]
[]
[]
[]
[]
[null,null,null,null,null,null,null,null,null,null,null,null,null,null,null,null,null,null,null,null,null,"Classe de Tensão",null,null,null,null,null,null,null,null,null,null,null,null,null,null,null,null,null,null,null,null," 15 KV"]
[]
[]
[]
[]
[]
[null,null,null,null,null,null,null,null,null,null,null,null,null,null,null,null,null,null,null,null,null,"Tipo do Poste ",null,null,null,null,null,null,null,null,null,null,null,null,null,null,null,null,null,null,null,null,{"$f":"'Tela 4'!E25","v":0}]
[]
[]
[]
[]
[]
[]
[]
[]
[]
[null,"OBSERVAÇÕES DO PROJETISTA:"]

{"sheet":"Rural 3","index":7,"n_rows":173,"n_cols":57,"rows_kept":173,"cut":false,"hidden":false,"merged":[[1,1,1,17],[1,18,1,83],[2,1,7,83],[87,44,88,69],[48,1,51,83],[56,6,75,7],[58,32,58,39],[59,35,60,45],[60,29,61,31],[65,19,67,23],[65,31,67,35],[65,44,66,49],[65,50,66,53],[66,56,69,65],[71,29,72,33],[8,1,47,83],[89,1,92,83],[97,21,100,62],[104,21,107,41],[104,42,107,62],[110,21,113,41],[110,42,113,62],[116,21,119,41],[116,42,119,62],[122,21,125,41],[122,42,125,62],[128,21,131,41],[128,42,131,62],[134,21,137,41],[134,42,137,62],[140,21,147,41],[140,42,147,62],[150,21,153,41],[150,42,153,62],[176,1,184,83],[156,21,159,41],[156,42,159,62],[162,21,165,41],[162,42,165,62],[168,21,171,62],[172,1,175,83]]}
[]
[null,null,null,null,null,null,null,null,null,null,null,null,null,null,null,null,null,null,"Posto Transformador Aéreo - Interligação Neoenergia Brasília "]
[null,"PLANTA SITUAÇÃO/LOCALIZAÇÃO"]
[]
[]
[]
[]
[]
[null,"Encaminhar plantas de situação e locação em anexo aos arquivos, contendo as seguintes informações;\n1 - Limites do lote \n2 - Identificação da rua e terrenos adjacentes \n3- Rede elétrica existente \n4 - Referência elétrica da rede existente(número de chave) \n5 - Coordenadas geográficas do poste do transformador \n6 - Posição da subestação com indicação dos afastamentos, a rede elétrica, e ao limite do lote"]
[]
[]
[]
[]
[]
[]
[]
[]
[]
[]
[]
[]
[]
[]
[]
[]
[]
[]
[]
[]
[]
[]
[]
[]
[]
[]
[]
[]
[]
[]
[]
[]
[]
[]
[]
[]
[]
[]
[]
[null,"DIAGRAMA UNIFILAR (MT/BT)"]
[]
[]
[]
[]
[]
[]
[]
[]
[]
[]
[null,null,null,null,null,null,null,null,null,null,null,null,null,null,null,null,null,null,null,null,null,null,null,null,null,null,null,null,null,null,null,null,null,null,null,{"$f":"AQ105","v":"112,5KVA - 13,8/0,38kV"}]
[null,null,null,null,null,null,null,null,null,null,null,null,null,null,null,null,null,null,null,null,null,null,null,null,null,null,null,null,null,{"$f":"Apoio!G4","v":"6K"}]
[]
[]
[]
[]
[null,null,null,null,null,null,null,null,null,null,null,null,null,null,null,null,null,null,null,"3#50 COBERTO ",null,null,null,null,null,null,null,null,null,null,null,"3#50 COBERTO ",null,null,null,null,null,null,null,null,null,null,null,null,{"$f":"Apoio!C7","v":""},null,null,null,null,null,{"$f":"CONCATENATE(Apoio!B4, \"A\")","v":"0A"}]
[null,null,null,null,null,null,null,null,null,null,null,null,null,null,null,null,null,null,null,null,null,null,null,null,null,null,null,null,null,null,null,null,null,null,null,null,null,null,null,null,null,null,null,null,null,null,null,null,null,null,null,null,null,null,null,null,"DPS 242V/5kA(mínimo)"]
[]
[]
[]
[]
[null,null,null,null,null,null,null,null,null,null,null,null,null,null,null,null,null,null,null,null,null,null,null,null,null,null,null,null,null,"12Kv - 10kA"]
[]
[]
[]
[]
[]
[]
[]
[]
[]
[]
[]
[]
[]
[]
[]
[null,null,null,null,null,null,null,null,null,null,null,null,null,null,null,null,null,null,null,null,null,null,null,null,null,null,null,null,null,null,null,null,null,null,null,null,null,null,null,null,null,null,null,null,{"$f":"CONCATENATE(\"6xHASTE COPPERWELD ∅ 5/8 \", 'Tela 4'!E30,\"m\",\" INTERLIGADAS ENTRE SI COM DISTÂNCIA DE \",Apoio!A10,\" METROS UMA DA OUTRA.\", )","v":"6xHASTE COPPERWELD ∅ 5/8 m INTERLIGADAS ENTRE SI COM DISTÂNCIA DE 0 METROS UMA DA OUTRA."}]
[]
[null,"DIMENSIONAMENTO AUTOMÁTICO DO RAMAL DE ENTRADA (CONFORME PARÂMETROS INFORMADOS)"]
[]
[]
[]
[]
[]
[]
[]
[null,null,null,null,null,null,null,null,null,null,null,null,null,null,null,null,null,null,null,null,null,"RESUMO DAS INSTALAÇÕES"]
[]
[]
[]
[]
[]
[]
[null,null,null,null,null,null,null,null,null,null,null,null,null,null,null,null,null,null,null,null,null,"Potência do Transformador:",null,null,null,null,null,null,null,null,null,null,null,null,null,null,null,null,null,null,null,null,{"$f":"CONCATENATE('Tela 4'!E14, \"KVA\",\" - \",'Tela 4'!E6)","v":"112,5KVA - 13,8/0,38kV"}]
[]
[]
[]
[]
[]
[null,null,null,null,null,null,null,null,null,null,null,null,null,null,null,null,null,null,null,null,null,"Elo Fusível de Proteção:",null,null,null,null,null,null,null,null,null,null,null,null,null,null,null,null,null,null,null,null,{"$f":"Apoio!G4","v":"6K"}]
[]
[]
[]
[]
[]
[null,null,null,null,null,null,null,null,null,null,null,null,null,null,null,null,null,null,null,null,null,"Disjuntor de proteção baixa tensão (BT)",null,null,null,null,null,null,null,null,null,null,null,null,null,null,null,null,null,null,null,null,{"$f":"Apoio!B4","v":0}]
[]
[]
[]
[]
[]
[null,null,null,null,null,null,null,null,null,null,null,null,null,null,null,null,null,null,null,null,null,"Condutor do ramal de entrada aéreo ",null,null,null,null,null,null,null,null,null,null,null,null,null,null,null,null,null,null,null,null,"Cabo coberto 50mm²"]
[]
[]
[]
[]
[]
[null,null,null,null,null,null,null,null,null,null,null,null,null,null,null,null,null,null,null,null,null,"Isolação do Condutor",null,null,null,null,null,null,null,null,null,null,null,null,null,null,null,null,null,null,null,null,{"$f":"'Tela 4'!E18","v":0}]
[]
[]
[]
[]
[]
[null,null,null,null,null,null,null,null,null,null,null,null,null,null,null,null,null,null,null,null,null,"Eletroduto (diâmetro mínimo em mm)",null,null,null,null,null,null,null,null,null,null,null,null,null,null,null,null,null,null,null,null,{"$f":"Apoio!E7","v":""}]
[]
[]
[]
[]
[]
[null,null,null,null,null,null,null,null,null,null,null,null,null,null,null,null,null,null,null,null,null,"Ligação do Transformador",null,null,null,null,null,null,null,null,null,null,null,null,null,null,null,null,null,null,null,null,{"$f":"IF(13.8,\"Primário: Delta - Secundário: Estrela Aterrada\",)","v":"Primário: Delta - Secundário: Estrela Aterrada"}]
[]
[]
[]
[]
[]
[]
[]
[]
[]
[null,null,null,null,null,null,null,null,null,null,null,null,null,null,null,null,null,null,null,null,null,"TAPs Primários",null,null,null,null,null,null,null,null,null,null,null,null,null,null,null,null,null,null,null,null,"13,8/13,2/12,6"]
[]
[]
[]
[]
[]
[null,null,null,null,null,null,null,null,null,null,null,null,null,null,null,null,null,null,null,null,null,"Classe de Tensão",null,null,null,null,null,null,null,null,null,null,null,null,null,null,null,null,null,null,null,null," 15 KV"]
[]
[]
[]
[]
[]
[null,null,null,null,null,null,null,null,null,null,null,null,null,null,null,null,null,null,null,null,null,"Tipo do Poste ",null,null,null,null,null,null,null,null,null,null,null,null,null,null,null,null,null,null,null,null,{"$f":"'Tela 4'!E25","v":0}]
[]
[]
[]
[]
[]
[]
[]
[]
[]
[null,"OBSERVAÇÕES DO PROJETISTA:"]

{"sheet":"Guia 1","index":8,"n_rows":71,"n_cols":78,"rows_kept":71,"cut":false,"hidden":false,"merged":[[59,73,65,82],[1,1,1,83],[2,1,7,83],[9,6,52,7],[9,77,52,78],[13,39,15,45],[17,39,27,45],[37,25,52,30],[37,54,52,59],[42,35,44,37],[42,46,44,48],[50,39,52,41],[50,43,52,51],[60,56,64,64],[70,37,78,47],[86,57,88,57],[33,43,35,45],[58,3,65,12],[58,35,60,39],[58,45,60,49]]}
[]
[null,"Posto Transformador Aéreo - Interligação Neoenergia Brasília "]
[null,"PLANTA SITUAÇÃO/LOCALIZAÇÃO"]
[]
[]
[]
[]
[]
[]
[null,null,null,null,null,null,"Nome da rua",null,null,null,null,null,null,null,null,null,null,null,null,null,null,null,null,null,null,null,null,null,null,null,null,null,null,null,null,null,null,null,null,null,null,null,null,null,null,null,null,null,null,null,null,null,null,null,null,null,null,null,null,null,null,null,null,null,null,null,null,null,null,null,null,null,null,null,null,null,null,"Nome da rua"]
[]
[]
[]
[null,null,null,null,null,null,null,null,null,null,null,null,null,null,null,null,null,null,null,null,null,null,null,null,null,null,null,null,null,null,null,null,null,null,null,null,null,null,null,"Edificação"]
[]
[]
[]
[null,null,null,null,null,null,null,null,null,null,null,null,null,null,null,null,null,null,null,null,null,null,null,null,null,null,null,null,null,null,null,null,null,null,null,null,null,null,null,{"$f":"'Tela 2'!F23","v":0}]
[]
[]
[]
[]
[]
[]
[]
[]
[]
[]
[]
[]
[]
[]
[]
[null,null,null,null,null,null,null,null,null,null,null,null,null,null,null,null,null,null,null,null,null,null,null,null,null,null,null,null,null,null,null,null,null,null,null,null,null,null,null,null,null,null,null,5]
[]
[]
[]
[null,null,null,null,null,null,null,null,null,null,null,null,null,null,null,null,null,null,null,null,null,null,null,null,null,"Nº medidor terreno vizinho:",null,null,null,null,null,null,null,null,null,null,null,null,null,null,null,null,null,null,null,null,null,null,null,null,null,null,null,null,"Nº medidor terreno vizinho:"]
[]
[]
[]
[]
[null,null,null,null,null,null,null,null,null,null,null,null,null,null,null,null,null,null,null,null,null,null,null,null,null,null,null,null,null,null,null,null,null,null,null,10,null,null,null,null,null,null,null,null,null,null,10]
[]
[]
[]
[]
[]
[]
[]
[null,null,null,null,null,null,null,null,null,null,null,null,null,null,null,null,null,null,null,null,null,null,null,null,null,null,null,null,null,null,null,null,null,null,null,null,null,null,null,5,null,null,null,"123456;123456789"]
[]
[]
[]
[]
[]
[]
[]
[null,null,null,"Chave de abertura (referência)",null,null,null,null,null,null,null,null,null,null,null,null,null,null,null,null,null,null,null,null,null,null,null,null,null,null,null,null,null,null,null,50,null,null,null,null,null,null,null,null,null,40]
[null,null,null,null,null,null,null,null,null,null,null,null,null,null,null,null,null,null,null,null,null,null,null,null,null,null,null,null,null,null,null,null,null,null,null,null,null,null,null,null,null,null,null,null,null,null,null,null,null,null,null,null,null,null,null,null,null,null,null,null,null,null,null,null,null,null,null,null,null,null,null,null,null,"Chave de abertura (referência)"]
[null,null,null,null,null,null,null,null,null,null,null,null,null,null,null,null,null,null,null,null,null,null,null,null,null,null,null,null,null,null,null,null,null,null,null,null,null,null,null,null,null,null,null,null,null,null,null,null,null,null,null,null,null,null,null,null,"Cabo Prim (Existente)"]
[]
[]
[]
[]
[]
[]
[]
[]
[]
[null,null,null,null,null,null,null,null,null,null,null,null,null,null,null,null,null,null,null,null,null,null,null,null,null,null,null,null,null,null,null,null,null,null,null,null,null,"Informar Características do Poste, chaves e Endereço Clientes: ,N°. "]

{"sheet":"Guia 2","index":9,"n_rows":71,"n_cols":78,"rows_kept":71,"cut":false,"hidden":false,"merged":[[58,3,65,12],[58,35,60,39],[58,45,60,49],[1,1,1,17],[1,18,1,83],[2,1,7,83],[9,6,52,7],[9,77,52,78],[13,39,15,45],[37,25,52,30],[37,54,52,59],[42,35,44,37],[42,46,44,48],[50,39,52,41],[50,43,52,51],[59,73,65,82],[60,56,64,64],[70,37,78,47],[86,57,88,57],[17,39,27,45],[33,43,35,45]]}
[]
[null,null,null,null,null,null,null,null,null,null,null,null,null,null,null,null,null,null,"Posto Transformador Aéreo - Interligação Neoenergia Brasília "]
[null,"PLANTA SITUAÇÃO/LOCALIZAÇÃO"]
[]
[]
[]
[]
[]
[]
[null,null,null,null,null,null,"Nome da rua",null,null,null,null,null,null,null,null,null,null,null,null,null,null,null,null,null,null,null,null,null,null,null,null,null,null,null,null,null,null,null,null,null,null,null,null,null,null,null,null,null,null,null,null,null,null,null,null,null,null,null,null,null,null,null,null,null,null,null,null,null,null,null,null,null,null,null,null,null,null,"Nome da rua"]
[]
[]
[]
[null,null,null,null,null,null,null,null,null,null,null,null,null,null,null,null,null,null,null,null,null,null,null,null,null,null,null,null,null,null,null,null,null,null,null,null,null,null,null,"Edificação"]
[]
[]
[]
[null,null,null,null,null,null,null,null,null,null,null,null,null,null,null,null,null,null,null,null,null,null,null,null,null,null,null,null,null,null,null,null,null,null,null,null,null,null,null,{"$f":"'Tela 2'!F23","v":0}]
[]
[]
[]
[]
[]
[]
[]
[]
[]
[]
[]
[]
[]
[]
[]
[null,null,null,null,null,null,null,null,null,null,null,null,null,null,null,null,null,null,null,null,null,null,null,null,null,null,null,null,null,null,null,null,null,null,null,null,null,null,null,null,null,null,null,5]
[]
[]
[]
[null,null,null,null,null,null,null,null,null,null,null,null,null,null,null,null,null,null,null,null,null,null,null,null,null,"Nº medidor terreno vizinho:",null,null,null,null,null,null,null,null,null,null,null,null,null,null,null,null,null,null,null,null,null,null,null,null,null,null,null,null,"Nº medidor terreno vizinho:"]
[]
[]
[]
[]
[null,null,null,null,null,null,null,null,null,null,null,null,null,null,null,null,null,null,null,null,null,null,null,null,null,null,null,null,null,null,null,null,null,null,null,10,null,null,null,null,null,null,null,null,null,null,10]
[]
[]
[]
[]
[]
[]
[]
[null,null,null,null,null,null,null,null,null,null,null,null,null,null,null,null,null,null,null,null,null,null,null,null,null,null,null,null,null,null,null,null,null,null,null,null,null,null,null,5,null,null,null,"123456;123456789"]
[]
[]
[]
[]
[]
[]
[]
[null,null,null,"Chave de abertura (referência)",null,null,null,null,null,null,null,null,null,null,null,null,null,null,null,null,null,null,null,null,null,null,null,null,null,null,null,null,null,null,null,50,null,null,null,null,null,null,null,null,null,40]
[null,null,null,null,null,null,null,null,null,null,null,null,null,null,null,null,null,null,null,null,null,null,null,null,null,null,null,null,null,null,null,null,null,null,null,null,null,null,null,null,null,null,null,null,null,null,null,null,null,null,null,null,null,null,null,null,null,null,null,null,null,null,null,null,null,null,null,null,null,null,null,null,null,"Chave de abertura (referência)"]
[null,null,null,null,null,null,null,null,null,null,null,null,null,null,null,null,null,null,null,null,null,null,null,null,null,null,null,null,null,null,null,null,null,null,null,null,null,null,null,null,null,null,null,null,null,null,null,null,null,null,null,null,null,null,null,null,"Cabo Prim (Existente)"]
[]
[]
[]
[]
[]
[]
[]
[]
[]
[null,null,null,null,null,null,null,null,null,null,null,null,null,null,null,null,null,null,null,null,null,null,null,null,null,null,null,null,null,null,null,null,null,null,null,null,null,"Informar Características do Poste, chaves e Endereço Clientes: ,N°. "]

{"sheet":"Guia 3","index":10,"n_rows":71,"n_cols":78,"rows_kept":71,"cut":false,"hidden":false,"merged":[[1,1,1,83],[2,1,2,83],[3,1,3,83],[4,1,7,83],[9,6,52,7],[9,77,52,78],[13,39,15,45],[17,39,27,45],[33,43,35,45],[37,25,52,30],[37,54,52,59],[42,35,44,37],[42,46,44,48],[70,37,78,47],[86,57,88,57],[50,39,52,41],[50,43,52,51],[59,73,65,82],[61,55,61,58],[61,61,61,63],[58,35,60,39],[58,45,60,49]]}
[]
[null,"Posto Transformador Aéreo - Interligação Neoenergia Brasília "]
[]
[]
[null,"PLANTA SITUAÇÃO/LOCALIZAÇÃO"]
[]
[]
[]
[]
[null,null,null,null,null,null,"Nome da rua",null,null,null,null,null,null,null,null,null,null,null,null,null,null,null,null,null,null,null,null,null,null,null,null,null,null,null,null,null,null,null,null,null,null,null,null,null,null,null,null,null,null,null,null,null,null,null,null,null,null,null,null,null,null,null,null,null,null,null,null,null,null,null,null,null,null,null,null,null,null,"Nome da rua"]
[]
[]
[]
[null,null,null,null,null,null,null,null,null,null,null,null,null,null,null,null,null,null,null,null,null,null,null,null,null,null,null,null,null,null,null,null,null,null,null,null,null,null,null,"Edificação"]
[]
[]
[]
[null,null,null,null,null,null,null,null,null,null,null,null,null,null,null,null,null,null,null,null,null,null,null,null,null,null,null,null,null,null,null,null,null,null,null,null,null,null,null,{"$f":"'Tela 2'!F23","v":0}]
[]
[]
[]
[]
[]
[]
[]
[]
[]
[]
[]
[]
[]
[]
[]
[null,null,null,null,null,null,null,null,null,null,null,null,null,null,null,null,null,null,null,null,null,null,null,null,null,null,null,null,null,null,null,null,null,null,null,null,null,null,null,null,null,null,null,5]
[]
[]
[]
[null,null,null,null,null,null,null,null,null,null,null,null,null,null,null,null,null,null,null,null,null,null,null,null,null,"Nº medidor terreno vizinho",null,null,null,null,null,null,null,null,null,null,null,null,null,null,null,null,null,null,null,null,null,null,null,null,null,null,null,null,"Nº medidor terreno vizinho"]
[]
[]
[]
[]
[null,null,null,null,null,null,null,null,null,null,null,null,null,null,null,null,null,null,null,null,null,null,null,null,null,null,null,null,null,null,null,null,null,null,null,10,null,null,null,null,null,null,null,null,null,null,10]
[]
[]
[]
[]
[]
[]
[]
[null,null,null,null,null,null,null,null,null,null,null,null,null,null,null,null,null,null,null,null,null,null,null,null,null,null,null,null,null,null,null,null,null,null,null,null,null,null,null,5,null,null,null,"123456;123456789"]
[]
[]
[]
[]
[]
[]
[]
[]
[null,null,null,null,null,null,null,null,null,null,null,null,null,null,null,null,null,null,null,null,null,null,null,null,null,null,null,null,null,null,null,null,null,null,null,null,null,null,null,null,null,null,null,null,null,null,null,null,null,null,null,null,null,null,null,null,null,null,null,null,null,null,null,null,null,null,null,null,null,null,null,null,null,"Chave de abertura (referência próxima)"]
[]
[]
[]
[]
[]
[]
[]
[]
[]
[]
[null,null,null,null,null,null,null,null,null,null,null,null,null,null,null,null,null,null,null,null,null,null,null,null,null,null,null,null,null,null,null,null,null,null,null,null,null,"Informar Características do Poste, chaves e Endereço Clientes: ,N°. "]

{"sheet":"Tela 5-Mesmo lado","index":11,"n_rows":226,"n_cols":65,"rows_kept":226,"cut":false,"hidden":false,"merged":[[215,21,218,41],[118,25,118,27],[105,18,105,21],[9,6,52,7],[219,57,224,63],[169,21,172,41],[209,21,212,41],[209,42,212,62],[181,21,188,41],[181,42,188,62],[203,21,206,41],[203,42,206,62],[145,21,148,41],[145,42,148,62],[151,21,154,41],[98,22,98,31],[197,21,200,41],[197,42,200,62],[59,73,65,82],[60,56,64,64],[157,21,160,41],[157,42,160,62],[130,1,133,83],[119,42,120,54],[127,28,129,51],[58,3,65,12],[97,6,116,7],[138,21,141,62],[106,17,106,22],[100,16,100,21],[58,35,60,39],[58,45,60,49],[2,1,7,83],[107,66,108,68],[114,56,117,65],[105,31,106,36],[89,1,92,83],[98,49,98,53],[99,35,99,39],[106,8,106,13],[105,9,105,12],[100,55,101,59],[101,13,101,24],[95,40,99,41],[1,1,1,83],[70,37,78,47],[86,57,88,57],[191,21,194,41],[191,42,194,62],[9,77,52,78],[13,39,15,45],[17,39,27,45],[33,43,35,45],[37,25,52,30],[37,54,52,59],[42,35,44,37],[42,46,44,48],[50,39,52,41],[50,43,52,51],[110,64,111,66],[229,1,236,83],[101,68,102,70],[101,40,102,53],[101,36,102,39],[101,29,102,34],[111,17,112,21],[109,19,110,27],[107,64,108,65],[163,21,166,41],[163,42,166,62],[169,42,172,62],[175,21,178,41],[151,42,154,62],[175,42,178,62],[225,1,228,83],[215,42,218,62]]}
[]
[null,"Posto Transformador Aéreo - Interligação Neoenergia Brasília "]
[null,"PLANTA SITUAÇÃO/LOCALIZAÇÃO"]
[]
[]
[]
[]
[]
[]
[]
[]
[]
[]
[null,null,null,null,null,null,null,null,null,null,null,null,null,null,null,null,null,null,null,null,null,null,null,null,null,null,null,null,null,null,null,null,null,null,null,null,null,null,null,"Edificação"]
[]
[]
[]
[null,null,null,null,null,null,null,null,null,null,null,null,null,null,null,null,null,null,null,null,null,null,null,null,null,null,null,null,null,null,null,null,null,null,null,null,null,null,null,{"$f":"'Tela 2'!F23","v":0}]
[]
[]
[]
[]
[]
[]
[]
[]
[]
[]
[]
[]
[]
[]
[]
[]
[]
[]
[]
[]
[]
[]
[]
[]
[]
[]
[]
[]
[]
[]
[]
[]
[]
[]
[]
[]
[]
[]
[]
[]
[]
[]
[]
[]
[]
[]
[]
[]
[]
[]
[]
[]
[]
[]
[]
[]
[]
[]
[]
[]
[]
[]
[]
[]
[]
[]
[]
[]
[]
[]
[]
[null,"DIAGRAMA UNIFILAR (MT/BT)"]
[]
[]
[]
[]
[]
[]
[]
[]
[null,null,null,null,null,null,null,null,null,null,null,null,null,null,null,null,null,null,null,null,null,null,{"$f":"CONCATENATE('Tela 4'!E14, \"KVA\",\" - \",'Tela 4'!E6)","v":"112,5KVA - 13,8/0,38kV"}]
[]
[null,null,null,null,null,null,null,null,null,null,null,null,null,null,null,null,null,null,null,null,null,null,null,null,null,null,null,null,null,null,null,null,null,null,null,null,null,null,null,null,null,null,null,null,null,null,null,null,null,null,null,null,null,null,null,{"$f":"CONCATENATE(Apoio!B4, \"A\")","v":"0A"}]
[null,null,null,null,null,null,null,null,null,null,null,null,null,{"$f":"Apoio!G4","v":"6K"},null,null,null,null,null,null,null,null,null,null,null,null,null,null,null,null,null,null,null,null,null,null,{"$f":"CONCATENATE(Apoio!D10, \"A\")","v":{"$error":"#N/A"}},null,null,null,{"$f":"Apoio!B7","v":0}]
[]
[]
[]
[null,null,null,null,null,null,null,null,null,"3#50",null,null,null,null,null,null,null,null,"3#50",null,null,null,null,null,null,null,null,null,null,null,null,{"$f":"Apoio!C7","v":""}]
[null,null,null,null,null,null,null,null,"COBERTO ",null,null,null,null,null,null,null,null,"COBERTO"]
[]
[]
[]
[null,null,null,null,null,null,null,null,null,null,null,null,null,null,null,null,null,null,null,null,null,null,null,null,null,null,null,null,null,null,null,null,null,null,null,null,null,null,null,null,null,null,null,null,null,null,null,null,null,null,null,null,null,null,null,null,null,null,null,null,null,null,null,null,"3*20A"]
[null,null,null,null,null,null,null,null,null,null,null,null,null,null,null,null,null,"12Kv - 10kA"]
[]
[]
[null,null,null,null,null,null,null,null,null,null,null,null,null,null,null,null,null,null,null,null,null,null,null,null,null,null,null,null,null,null,null,null,null,null,null,null,null,null,null,null,null,null,null,null,null,null,null,null,null,null,null,null,null,null,null,null,"DPS 242V/5kA(mínimo)"]
[]
[]
[]
[null,null,null,null,null,null,null,null,null,null,null,null,null,null,null,null,null,null,null,null,null,null,null,null,null,"#35"]
[null,null,null,null,null,null,null,null,null,null,null,null,null,null,null,null,null,null,null,null,null,null,null,null,null,null,null,null,null,null,null,null,null,null,null,null,null,null,null,null,null,null,"Cordoalha de cobre nú 50 mm²"]
[]
[]
[]
[]
[]
[]
[]
[null,null,null,null,null,null,null,null,null,null,null,null,null,null,null,null,null,null,null,null,null,null,null,null,null,null,null,null,{"$f":"CONCATENATE(\"6xHASTE COPPERWELD ∅ 5/8 \", 'Tela 4'!E30,\"m\",\" INTERLIGADAS ENTRE SI COM DISTÂNCIA DE \",Apoio!A10,\" METROS UMA DA OUTRA.\", )","v":"6xHASTE COPPERWELD ∅ 5/8 m INTERLIGADAS ENTRE SI COM DISTÂNCIA DE 0 METROS UMA DA OUTRA."}]
[]
[]
[null,"DIMENSIONAMENTO AUTOMÁTICO DO RAMAL DE ENTRADA (CONFORME PARÂMETROS INFORMADOS)"]
[]
[]
[]
[]
[]
[]
[]
[null,null,null,null,null,null,null,null,null,null,null,null,null,null,null,null,null,null,null,null,null,"RESUMO DAS INSTALAÇÕES"]
[]
[]
[]
[]
[]
[]
[null,null,null,null,null,null,null,null,null,null,null,null,null,null,null,null,null,null,null,null,null,"Potência do Transformador:",null,null,null,null,null,null,null,null,null,null,null,null,null,null,null,null,null,null,null,null,{"$f":"CONCATENATE('Tela 4'!E14, \"KVA\",\" - \",'Tela 4'!E6)","v":"112,5KVA - 13,8/0,38kV"}]
[]
[]
[]
[]
[]
[null,null,null,null,null,null,null,null,null,null,null,null,null,null,null,null,null,null,null,null,null,"Elo Fusível de Proteção:",null,null,null,null,null,null,null,null,null,null,null,null,null,null,null,null,null,null,null,null,{"$f":"IFERROR(VLOOKUP('Tela 4'!E14,Apoio!$A$18:$M$29,3,0),\"\")","v":"6K"}]
[]
[]
[]
[]
[]
[null,null,null,null,null,null,null,null,null,null,null,null,null,null,null,null,null,null,null,null,null,"Disjuntor de proteção baixa tensão (BT)",null,null,null,null,null,null,null,null,null,null,null,null,null,null,null,null,null,null,null,null,{"$f":"IFERROR(VLOOKUP('Tela 4'!E14,Apoio!$A$18:$L$226,2,0),\"\")","v":150}]
[]
[]
[]
[]
[]
[null,null,null,null,null,null,null,null,null,null,null,null,null,null,null,null,null,null,null,null,null,"Condutor do ramal de entrada aéreo ",null,null,null,null,null,null,null,null,null,null,null,null,null,null,null,null,null,null,null,null,"Cabo coberto 50mm²"]
[]
[]
[]
[]
[]
[null,null,null,null,null,null,null,null,null,null,null,null,null,null,null,null,null,null,null,null,null,"Isolação do Condutor",null,null,null,null,null,null,null,null,null,null,null,null,null,null,null,null,null,null,null,null,{"$f":"'Tela 4'!E18","v":0}]
[]
[]
[]
[]
[]
[null,null,null,null,null,null,null,null,null,null,null,null,null,null,null,null,null,null,null,null,null,"Eletroduto (diâmetro mínimo em mm)",null,null,null,null,null,null,null,null,null,null,null,null,null,null,null,null,null,null,null,null,{"$f":"Apoio!E7","v":""}]
[]
[]
[]
[]
[]
[null,null,null,null,null,null,null,null,null,null,null,null,null,null,null,null,null,null,null,null,null,"Ligação do Transformador",null,null,null,null,null,null,null,null,null,null,null,null,null,null,null,null,null,null,null,null,{"$f":"IF(13.8,\"Primário: Delta - Secundário: Estrela Aterrada\",)","v":"Primário: Delta - Secundário: Estrela Aterrada"}]
[]
[]
[]
[]
[]
[]
[]
[]
[]
[null,null,null,null,null,null,null,null,null,null,null,null,null,null,null,null,null,null,null,null,null,"TAPs Primários",null,null,null,null,null,null,null,null,null,null,null,null,null,null,null,null,null,null,null,null,"13,8/13,2/12,6"]
[]
[]
[]
[]
[]
[null,null,null,null,null,null,null,null,null,null,null,null,null,null,null,null,null,null,null,null,null,"Classe de Tensão",null,null,null,null,null,null,null,null,null,null,null,null,null,null,null,null,null,null,null,null," 15 KV"]
[]
[]
[]
[]
[]
[null,null,null,null,null,null,null,null,null,null,null,null,null,null,null,null,null,null,null,null,null,"Tipo do Poste ",null,null,null,null,null,null,null,null,null,null,null,null,null,null,null,null,null,null,null,null,{"$f":"'Tela 4'!E25","v":0}]
[]
[]
[]
[]
[]
[null,null,null,null,null,null,null,null,null,null,null,null,null,null,null,null,null,null,null,null,null,"Barramento de cobre",null,null,null,null,null,null,null,null,null,null,null,null,null,null,null,null,null,null,null,null,{"$f":"Apoio!C10","v":{"$error":"#N/A"}}]
[]
[]
[]
[]
[]
[null,null,null,null,null,null,null,null,null,null,null,null,null,null,null,null,null,null,null,null,"Tipo","Fusível",null,null,null,null,null,null,null,null,null,null,null,null,null,null,null,null,null,null,null,null,{"$f":"Apoio!D10","v":{"$error":"#N/A"}}]
[]
[]
[]
[]
[]
[]
[null,null,null,null,null,null,null,null,null,null,null,null,null,null,null,null,null,null,null,null,null,"Detalhes Construtivos (Posto Transformador)"]
[]
[]
[null,"OBSERVAÇÕES DO PROJETISTA:"]

{"sheet":"Tela 6-Outro lado","index":12,"n_rows":227,"n_cols":66,"rows_kept":227,"cut":false,"hidden":false,"merged":[[58,35,60,39],[58,45,60,49],[95,41,99,42],[107,67,108,69],[105,18,105,21],[98,21,98,33],[99,17,100,18],[164,21,167,42],[164,43,167,63],[128,29,130,52],[109,21,110,31],[101,15,102,21],[170,21,173,42],[170,43,173,63],[101,44,102,50],[105,31,106,37],[114,58,118,66],[100,56,101,59],[146,21,149,42],[146,43,149,63],[152,21,155,42],[152,43,155,63],[158,21,161,42],[158,43,161,63],[139,21,142,63],[118,26,118,28],[131,1,134,83],[119,43,120,55],[58,3,65,12],[59,73,65,82],[60,56,64,64],[70,37,78,47],[106,8,106,13],[106,17,106,22],[86,57,88,57],[89,1,92,83],[97,6,116,7],[98,50,98,54],[99,36,99,40],[101,37,102,40],[105,9,105,12],[110,65,111,67],[111,17,112,21],[107,65,108,66],[1,1,1,17],[1,18,1,83],[9,6,52,7],[9,77,52,78],[13,39,15,45],[17,39,27,45],[37,54,52,59],[50,43,52,51],[2,1,7,83],[37,25,52,30],[42,35,44,37],[33,43,35,45],[42,46,44,48],[50,39,52,41],[226,1,229,83],[230,1,238,83],[216,21,219,42],[216,43,219,63],[176,21,179,42],[182,21,189,42],[210,21,213,42],[210,43,213,63],[192,21,195,42],[192,43,195,63],[198,21,201,42],[198,43,201,63],[204,21,207,42],[204,43,207,63],[176,43,179,63],[182,43,189,63]]}
[]
[null,null,null,null,null,null,null,null,null,null,null,null,null,null,null,null,null,null,"Posto Transformador Aéreo - Interligação Neoenergia Brasília "]
[null,"PLANTA SITUAÇÃO/LOCALIZAÇÃO"]
[]
[]
[]
[]
[]
[]
[]
[]
[]
[]
[null,null,null,null,null,null,null,null,null,null,null,null,null,null,null,null,null,null,null,null,null,null,null,null,null,null,null,null,null,null,null,null,null,null,null,null,null,null,null,"Edificação"]
[]
[]
[]
[null,null,null,null,null,null,null,null,null,null,null,null,null,null,null,null,null,null,null,null,null,null,null,null,null,null,null,null,null,null,null,null,null,null,null,null,null,null,null,{"$f":"'Tela 2'!F23","v":0}]
[]
[]
[]
[]
[]
[]
[]
[]
[]
[]
[]
[]
[]
[]
[]
[]
[]
[]
[]
[]
[]
[]
[]
[]
[]
[]
[]
[]
[]
[]
[]
[]
[]
[]
[]
[]
[]
[]
[]
[]
[]
[]
[]
[]
[]
[]
[]
[]
[]
[]
[]
[]
[]
[]
[]
[]
[]
[]
[]
[]
[]
[]
[]
[]
[]
[]
[]
[]
[]
[]
[]
[null,"DIAGRAMA UNIFILAR (MT/BT)"]
[]
[]
[]
[]
[]
[]
[]
[]
[null,null,null,null,null,null,null,null,null,null,null,null,null,null,null,null,null,null,null,null,null,{"$f":"CONCATENATE('Tela 4'!E14, \"KVA\",\" - \",'Tela 4'!E6)","v":"112,5KVA - 13,8/0,38kV"}]
[null,null,null,null,null,null,null,null,null,null,null,null,null,null,null,null,null,{"$f":"IFERROR(VLOOKUP('Tela 4'!E14,Apoio!$A$18:$M$29,3,0),\"\")","v":"6K"}]
[null,null,null,null,null,null,null,null,null,null,null,null,null,null,null,null,null,null,null,null,null,null,null,null,null,null,null,null,null,null,null,null,null,null,null,null,null,null,null,null,null,null,null,null,null,null,null,null,null,null,null,null,null,null,null,null,{"$f":"CONCATENATE(Apoio!B4, \"A\")","v":"0A"}]
[null,null,null,null,null,null,null,null,null,null,null,null,null,null,null,null,null,null,null,null,null,null,null,null,null,null,null,null,null,null,null,null,null,null,null,null,null,{"$f":"CONCATENATE(Apoio!B4, \"A\")","v":"0A"},null,null,null,null,null,null,{"$f":"Apoio!B7","v":0}]
[]
[]
[]
[null,null,null,null,null,null,null,null,null,"3#50",null,null,null,null,null,null,null,null,"3#50",null,null,null,null,null,null,null,null,null,null,null,null,{"$f":"Apoio!C7","v":""}]
[null,null,null,null,null,null,null,null,"COBERTO ",null,null,null,null,null,null,null,null,"COBERTO"]
[]
[]
[]
[null,null,null,null,null,null,null,null,null,null,null,null,null,null,null,null,null,null,null,null,null,null,null,null,null,null,null,null,null,null,null,null,null,null,null,null,null,null,null,null,null,null,null,null,null,null,null,null,null,null,null,null,null,null,null,null,null,null,null,null,null,null,null,null,null,"3*20A"]
[null,null,null,null,null,null,null,null,null,null,null,null,null,null,null,null,null,"12Kv - 10kA"]
[]
[]
[null,null,null,null,null,null,null,null,null,null,null,null,null,null,null,null,null,null,null,null,null,null,null,null,null,null,null,null,null,null,null,null,null,null,null,null,null,null,null,null,null,null,null,null,null,null,null,null,null,null,null,null,null,null,null,null,null,null,"DPS 242V/5kA(mínimo)"]
[]
[]
[]
[null,null,null,null,null,null,null,null,null,null,null,null,null,null,null,null,null,null,null,null,null,null,null,null,null,null,"#35"]
[null,null,null,null,null,null,null,null,null,null,null,null,null,null,null,null,null,null,null,null,null,null,null,null,null,null,null,null,null,null,null,null,null,null,null,null,null,null,null,null,null,null,null,"Cordoalha de cobre nú 50 mm²"]
[]
[]
[]
[]
[]
[]
[]
[]
[null,null,null,null,null,null,null,null,null,null,null,null,null,null,null,null,null,null,null,null,null,null,null,null,null,null,null,null,null,{"$f":"CONCATENATE(\"6xHASTE COPPERWELD ∅ 5/8 \", 'Tela 4'!E30,\"m\",\" INTERLIGADAS ENTRE SI COM DISTÂNCIA DE \",Apoio!A10,\" METROS UMA DA OUTRA.\", )","v":"6xHASTE COPPERWELD ∅ 5/8 m INTERLIGADAS ENTRE SI COM DISTÂNCIA DE 0 METROS UMA DA OUTRA."}]
[]
[]
[null,"DIMENSIONAMENTO AUTOMÁTICO DO RAMAL DE ENTRADA (CONFORME PARÂMETROS INFORMADOS)"]
[]
[]
[]
[]
[]
[]
[]
[null,null,null,null,null,null,null,null,null,null,null,null,null,null,null,null,null,null,null,null,null,"RESUMO DAS INSTALAÇÕES"]
[]
[]
[]
[]
[null,null,null,null,null,null,null,null,null,null,null,null,null,null,null,null,null,null,null,"Potência do Transformador:"]
[]
[null,null,null,null,null,null,null,null,null,null,null,null,null,null,null,null,null,null,null,null,null,"Potência do Transformador:",null,null,null,null,null,null,null,null,null,null,null,null,null,null,null,null,null,null,null,null,null,{"$f":"CONCATENATE('Tela 4'!E14, \"KVA\",\" - \",'Tela 4'!E6)","v":"112,5KVA - 13,8/0,38kV"}]
[]
[]
[]
[]
[]
[null,null,null,null,null,null,null,null,null,null,null,null,null,null,null,null,null,null,null,null,null,"Elo Fusível de Proteção:",null,null,null,null,null,null,null,null,null,null,null,null,null,null,null,null,null,null,null,null,null,{"$f":"IFERROR(VLOOKUP('Tela 4'!E14,Apoio!$A$18:$M$29,3,0),\"\")","v":"6K"}]
[]
[]
[]
[]
[]
[null,null,null,null,null,null,null,null,null,null,null,null,null,null,null,null,null,null,null,null,null,"Disjuntor de proteção baixa tensão (BT)",null,null,null,null,null,null,null,null,null,null,null,null,null,null,null,null,null,null,null,null,null,{"$f":"IFERROR(VLOOKUP('Tela 4'!E14,Apoio!$A$18:$L$226,2,0),\"\")","v":150}]
[]
[]
[]
[]
[]
[null,null,null,null,null,null,null,null,null,null,null,null,null,null,null,null,null,null,null,null,null,"Condutor do ramal de entrada aéreo ",null,null,null,null,null,null,null,null,null,null,null,null,null,null,null,null,null,null,null,null,null,"Cabo coberto 50mm²"]
[]
[]
[]
[]
[]
[null,null,null,null,null,null,null,null,null,null,null,null,null,null,null,null,null,null,null,null,null,"Isolação do Condutor",null,null,null,null,null,null,null,null,null,null,null,null,null,null,null,null,null,null,null,null,null,{"$f":"'Tela 4'!E18","v":0}]
[]
[]
[]
[]
[]
[null,null,null,null,null,null,null,null,null,null,null,null,null,null,null,null,null,null,null,null,null,"Eletroduto (diâmetro mínimo em mm)",null,null,null,null,null,null,null,null,null,null,null,null,null,null,null,null,null,null,null,null,null,{"$f":"Apoio!E7","v":""}]
[]
[]
[]
[]
[]
[null,null,null,null,null,null,null,null,null,null,null,null,null,null,null,null,null,null,null,null,null,"Ligação do Transformador",null,null,null,null,null,null,null,null,null,null,null,null,null,null,null,null,null,null,null,null,null,{"$f":"IF(13.8,\"Primário: Delta - Secundário: Estrela Aterrada\",)","v":"Primário: Delta - Secundário: Estrela Aterrada"}]
[]
[]
[]
[]
[]
[]
[]
[]
[]
[null,null,null,null,null,null,null,null,null,null,null,null,null,null,null,null,null,null,null,null,null,"TAPs Primários",null,null,null,null,null,null,null,null,null,null,null,null,null,null,null,null,null,null,null,null,null,"13,8/13,2/12,6"]
[]
[]
[]
[]
[]
[null,null,null,null,null,null,null,null,null,null,null,null,null,null,null,null,null,null,null,null,null,"Classe de Tensão",null,null,null,null,null,null,null,null,null,null,null,null,null,null,null,null,null,null,null,null,null," 15 KV"]
[]
[]
[]
[]
[]
[null,null,null,null,null,null,null,null,null,null,null,null,null,null,null,null,null,null,null,null,null,"Tipo",null,null,null,null,null,null,null,null,null,null,null,null,null,null,null,null,null,null,null,null,null,{"$f":"'Tela 4'!E25","v":0}]
[]
[]
[]
[]
[]
[null,null,null,null,null,null,null,null,null,null,null,null,null,null,null,null,null,null,null,null,null,"Barramento de cobre",null,null,null,null,null,null,null,null,null,null,null,null,null,null,null,null,null,null,null,null,null,{"$f":"Apoio!C10","v":{"$error":"#N/A"}}]
[]
[]
[]
[]
[]
[null,null,null,null,null,null,null,null,null,null,null,null,null,null,null,null,null,null,null,null,null,"Fusível ",null,null,null,null,null,null,null,null,null,null,null,null,null,null,null,null,null,null,null,null,null,{"$f":"Apoio!D10","v":{"$error":"#N/A"}}]
[]
[]
[]
[]
[]
[]
[]
[]
[]
[null,"OBSERVAÇÕES DO PROJETISTA:"]

{"sheet":"Tela 7 - Sem rede ","index":13,"n_rows":227,"n_cols":65,"rows_kept":227,"cut":false,"hidden":false,"merged":[[101,13,101,24],[181,21,188,41],[181,42,188,62],[151,21,154,41],[151,42,154,62],[157,21,160,41],[157,42,160,62],[163,21,166,41],[163,42,166,62],[169,21,172,41],[169,42,172,62],[175,21,178,41],[175,42,178,62],[145,21,148,41],[145,42,148,62],[105,18,105,21],[119,42,120,54],[209,21,212,41],[209,42,212,62],[191,21,194,41],[191,42,194,62],[197,21,200,41],[197,42,200,62],[203,21,206,41],[203,42,206,62],[127,28,129,51],[138,21,141,62],[130,1,133,83],[58,35,60,39],[58,45,60,49],[59,73,65,82],[58,3,65,12],[9,6,52,7],[9,77,52,78],[13,39,15,45],[17,39,27,45],[33,43,35,45],[42,46,44,48],[37,25,52,30],[37,54,52,59],[42,35,44,37],[61,61,61,63],[86,57,88,57],[70,37,78,47],[106,17,106,22],[114,56,117,64],[117,25,118,27],[95,40,99,41],[98,22,98,31],[109,19,110,27],[110,64,111,66],[111,17,112,21],[105,30,106,36],[89,1,92,83],[107,64,108,65],[97,6,116,7],[107,66,108,68],[106,8,106,13],[105,9,105,12],[230,1,237,83],[1,1,3,83],[61,55,61,58],[226,1,229,83],[101,36,103,39],[102,43,103,49],[98,49,98,53],[99,35,99,39],[100,55,102,57],[100,16,100,21],[50,39,52,41],[50,43,52,51],[4,1,7,83],[216,42,219,62],[216,21,219,41]]}
[]
[null,"Posto Transformador Aéreo - Interligação Neoenergia Brasília "]
[]
[]
[null,"PLANTA SITUAÇÃO/LOCALIZAÇÃO"]
[]
[]
[]
[]
[]
[]
[]
[]
[null,null,null,null,null,null,null,null,null,null,null,null,null,null,null,null,null,null,null,null,null,null,null,null,null,null,null,null,null,null,null,null,null,null,null,null,null,null,null,"Edificação"]
[]
[]
[]
[null,null,null,null,null,null,null,null,null,null,null,null,null,null,null,null,null,null,null,null,null,null,null,null,null,null,null,null,null,null,null,null,null,null,null,null,null,null,null,{"$f":"'Tela 2'!F23","v":0}]
[]
[]
[]
[]
[]
[]
[]
[]
[]
[]
[]
[]
[]
[]
[]
[]
[]
[]
[]
[]
[]
[]
[]
[]
[]
[]
[]
[]
[]
[]
[]
[]
[]
[]
[]
[]
[]
[]
[]
[]
[]
[]
[]
[]
[]
[]
[]
[]
[]
[]
[]
[]
[]
[]
[]
[]
[]
[]
[]
[]
[]
[]
[]
[]
[]
[]
[]
[]
[]
[]
[]
[null,"DIAGRAMA UNIFILAR (MT/BT)"]
[]
[]
[]
[]
[]
[]
[]
[]
[null,null,null,null,null,null,null,null,null,null,null,null,null,null,null,null,null,null,null,null,null,null,{"$f":"CONCATENATE('Tela 4'!E14, \"KVA\",\" - \",'Tela 4'!E6)","v":"112,5KVA - 13,8/0,38kV"}]
[]
[null,null,null,null,null,null,null,null,null,null,null,null,null,null,null,null,null,null,null,null,null,null,null,null,null,null,null,null,null,null,null,null,null,null,null,null,null,null,null,null,null,null,null,null,null,null,null,null,null,null,null,null,null,null,null,{"$f":"CONCATENATE(Apoio!B4, \"A\")","v":"0A"}]
[null,null,null,null,null,null,null,null,null,null,null,null,null,{"$f":"IFERROR(VLOOKUP('Tela 4'!E14,Apoio!$A$18:$M$29,3,0),\"\")","v":"6K"},null,null,null,null,null,null,null,null,null,null,null,null,null,null,null,null,null,null,null,null,null,null,{"$f":"CONCATENATE(Apoio!B4, \"A\")","v":"0A"}]
[null,null,null,null,null,null,null,null,null,null,null,null,null,null,null,null,null,null,null,null,null,null,null,null,null,null,null,null,null,null,null,null,null,null,null,null,null,null,null,null,null,null,null,{"$f":"Apoio!B7","v":0}]
[]
[]
[null,null,null,null,null,null,null,null,null,"3#50",null,null,null,null,null,null,null,null,"3#50",null,null,null,null,null,null,null,null,null,null,null,{"$f":"Apoio!C7","v":""}]
[null,null,null,null,null,null,null,null,"COBERTO ",null,null,null,null,null,null,null,null,"COBERTO"]
[]
[]
[]
[null,null,null,null,null,null,null,null,null,null,null,null,null,null,null,null,null,null,null,null,null,null,null,null,null,null,null,null,null,null,null,null,null,null,null,null,null,null,null,null,null,null,null,null,null,null,null,null,null,null,null,null,null,null,null,null,null,null,null,null,null,null,null,null,"3*20A"]
[null,null,null,null,null,null,null,null,null,null,null,null,null,null,null,null,null,"12Kv - 10kA"]
[]
[]
[null,null,null,null,null,null,null,null,null,null,null,null,null,null,null,null,null,null,null,null,null,null,null,null,null,null,null,null,null,null,null,null,null,null,null,null,null,null,null,null,null,null,null,null,null,null,null,null,null,null,null,null,null,null,null,null,"DPS 242V/5kA(mínimo)"]
[]
[]
[null,null,null,null,null,null,null,null,null,null,null,null,null,null,null,null,null,null,null,null,null,null,null,null,null,"#35"]
[]
[null,null,null,null,null,null,null,null,null,null,null,null,null,null,null,null,null,null,null,null,null,null,null,null,null,null,null,null,null,null,null,null,null,null,null,null,null,null,null,null,null,null,"Cordoalha de cobre nú 50 mm²"]
[]
[]
[]
[]
[]
[]
[]
[null,null,null,null,null,null,null,null,null,null,null,null,null,null,null,null,null,null,null,null,null,null,null,null,null,null,null,null,{"$f":"CONCATENATE(\"6xHASTE COPPERWELD ∅ 5/8 \", 'Tela 4'!E30,\"m\",\" INTERLIGADAS ENTRE SI COM DISTÂNCIA DE \",Apoio!A10,\" METROS UMA DA OUTRA.\", )","v":"6xHASTE COPPERWELD ∅ 5/8 m INTERLIGADAS ENTRE SI COM DISTÂNCIA DE 0 METROS UMA DA OUTRA."}]
[]
[]
[null,"DIMENSIONAMENTO AUTOMÁTICO DO RAMAL DE ENTRADA (CONFORME PARÂMETROS INFORMADOS)"]
[]
[]
[]
[]
[]
[]
[]
[null,null,null,null,null,null,null,null,null,null,null,null,null,null,null,null,null,null,null,null,null,"RESUMO DAS INSTALAÇÕES"]
[]
[]
[]
[]
[]
[]
[null,null,null,null,null,null,null,null,null,null,null,null,null,null,null,null,null,null,null,null,null,"Potência do Transformador:",null,null,null,null,null,null,null,null,null,null,null,null,null,null,null,null,null,null,null,null,{"$f":"CONCATENATE('Tela 4'!E14, \"KVA\",\" - \",'Tela 4'!E6)","v":"112,5KVA - 13,8/0,38kV"}]
[]
[]
[]
[]
[]
[null,null,null,null,null,null,null,null,null,null,null,null,null,null,null,null,null,null,null,null,null,"Elo Fusível de Proteção:",null,null,null,null,null,null,null,null,null,null,null,null,null,null,null,null,null,null,null,null,{"$f":"IFERROR(VLOOKUP('Tela 4'!E14,Apoio!$A$18:$M$29,3,0),\"\")","v":"6K"}]
[]
[]
[]
[]
[]
[null,null,null,null,null,null,null,null,null,null,null,null,null,null,null,null,null,null,null,null,null,"Disjuntor de proteção baixa tensão (BT)",null,null,null,null,null,null,null,null,null,null,null,null,null,null,null,null,null,null,null,null,{"$f":"IFERROR(VLOOKUP('Tela 4'!E14,Apoio!$A$18:$L$226,2,0),\"\")","v":150}]
[]
[]
[]
[]
[]
[null,null,null,null,null,null,null,null,null,null,null,null,null,null,null,null,null,null,null,null,null,"Condutor do ramal de entrada aéreo ",null,null,null,null,null,null,null,null,null,null,null,null,null,null,null,null,null,null,null,null,"Cabo coberto 50mm²"]
[]
[]
[]
[]
[]
[null,null,null,null,null,null,null,null,null,null,null,null,null,null,null,null,null,null,null,null,null,"Isolação do Condutor",null,null,null,null,null,null,null,null,null,null,null,null,null,null,null,null,null,null,null,null,{"$f":"'Tela 4'!E18","v":0}]
[]
[]
[]
[]
[]
[null,null,null,null,null,null,null,null,null,null,null,null,null,null,null,null,null,null,null,null,null,"Eletroduto (diâmetro mínimo em mm)",null,null,null,null,null,null,null,null,null,null,null,null,null,null,null,null,null,null,null,null,{"$f":"Apoio!E7","v":""}]
[]
[]
[]
[]
[]
[null,null,null,null,null,null,null,null,null,null,null,null,null,null,null,null,null,null,null,null,null,"Ligação do Transformador",null,null,null,null,null,null,null,null,null,null,null,null,null,null,null,null,null,null,null,null,{"$f":"IF(13.8,\"Primário: Delta - Secundário: Estrela Aterrada\",)","v":"Primário: Delta - Secundário: Estrela Aterrada"}]
[]
[]
[]
[]
[]
[]
[]
[]
[]
[null,null,null,null,null,null,null,null,null,null,null,null,null,null,null,null,null,null,null,null,null,"TAPs Primários",null,null,null,null,null,null,null,null,null,null,null,null,null,null,null,null,null,null,null,null,"13,8/13,2/12,6"]
[]
[]
[]
[]
[]
[null,null,null,null,null,null,null,null,null,null,null,null,null,null,null,null,null,null,null,null,null,"Classe de Tensão",null,null,null,null,null,null,null,null,null,null,null,null,null,null,null,null,null,null,null,null," 15 KV"]
[]
[]
[]
[]
[]
[null,null,null,null,null,null,null,null,null,null,null,null,null,null,null,null,null,null,null,null,null,"Tipo do Poste ",null,null,null,null,null,null,null,null,null,null,null,null,null,null,null,null,null,null,null,null,{"$f":"'Tela 4'!E25","v":0}]
[]
[]
[]
[]
[]
[null,null,null,null,null,null,null,null,null,null,null,null,null,null,null,null,null,null,null,null,null,"Barramento de cobre",null,null,null,null,null,null,null,null,null,null,null,null,null,null,null,null,null,null,null,null,{"$f":"Apoio!C10","v":{"$error":"#N/A"}}]
[]
[]
[]
[]
[]
[null,null,null,null,null,null,null,null,null,null,null,null,null,null,null,null,null,null,null,null,"Tipo"]
[null,null,null,null,null,null,null,null,null,null,null,null,null,null,null,null,null,null,null,null,null,"Fusível ",null,null,null,null,null,null,null,null,null,null,null,null,null,null,null,null,null,null,null,null,{"$f":"Apoio!D10","v":{"$error":"#N/A"}}]
[]
[]
[]
[]
[]
[null,null,null,null,null,null,null,null,null,null,null,null,null,null,null,null,null,null,null,null,null,"Detalhes Construtivos (Posto Transformador)"]
[]
[]
[]
[null,"OBSERVAÇÕES DO PROJETISTA:"]

{"sheet":"Poli1","index":14,"n_rows":214,"n_cols":59,"rows_kept":214,"cut":false,"hidden":false,"merged":[[151,21,154,41],[151,42,154,62],[1,1,1,17],[9,6,52,7],[97,6,116,7],[99,32,99,39],[100,35,101,45],[101,29,102,31],[106,19,108,23],[106,31,108,35],[106,44,107,49],[58,35,60,39],[58,45,60,49],[2,1,7,83],[110,58,111,67],[59,73,65,82],[60,56,64,64],[145,21,148,41],[145,42,148,62],[138,21,141,62],[131,1,134,83],[89,1,92,83],[86,57,88,57],[106,50,107,53],[112,29,113,33],[128,44,130,69],[58,3,65,12],[70,37,78,47],[106,58,107,63],[157,21,160,41],[157,42,160,62],[163,21,166,41],[163,42,166,62],[203,21,206,41],[203,42,206,62],[169,21,172,41],[169,42,172,62],[175,21,178,41],[175,42,178,62],[213,1,216,83],[181,21,188,41],[181,42,188,62],[217,1,225,83],[191,21,194,41],[191,42,194,62],[197,21,200,41],[197,42,200,62],[1,18,1,83],[37,25,52,30],[37,54,52,59],[42,35,44,37],[42,46,44,48],[50,39,52,41],[50,43,52,51],[9,77,52,78],[13,39,15,45],[17,39,27,45],[33,43,35,45]]}
[]
[null,null,null,null,null,null,null,null,null,null,null,null,null,null,null,null,null,null,"Posto Transformador Aéreo - Interligação Neoenergia Brasília "]
[null,"PLANTA SITUAÇÃO/LOCALIZAÇÃO"]
[]
[]
[]
[]
[]
[]
[]
[]
[]
[]
[null,null,null,null,null,null,null,null,null,null,null,null,null,null,null,null,null,null,null,null,null,null,null,null,null,null,null,null,null,null,null,null,null,null,null,null,null,null,null,"Edificação"]
[]
[]
[]
[null,null,null,null,null,null,null,null,null,null,null,null,null,null,null,null,null,null,null,null,null,null,null,null,null,null,null,null,null,null,null,null,null,null,null,null,null,null,null,{"$f":"'Tela 2'!F23","v":0}]
[]
[]
[]
[]
[]
[]
[]
[]
[]
[]
[]
[]
[]
[]
[]
[]
[]
[]
[]
[]
[]
[]
[]
[]
[]
[]
[]
[]
[]
[]
[]
[]
[]
[]
[]
[]
[]
[]
[]
[]
[]
[]
[]
[]
[]
[]
[]
[]
[]
[]
[]
[]
[]
[]
[]
[]
[]
[]
[]
[]
[]
[]
[]
[]
[]
[]
[]
[]
[]
[]
[]
[null,"DIAGRAMA UNIFILAR (MT/BT)"]
[]
[]
[]
[]
[]
[]
[]
[]
[]
[]
[null,null,null,null,null,null,null,null,null,null,null,null,null,null,null,null,null,null,null,null,null,null,null,null,null,null,null,null,null,null,null,null,null,null,null,{"$f":"AQ146","v":"112,5KVA - 13,8/0,38kV"}]
[null,null,null,null,null,null,null,null,null,null,null,null,null,null,null,null,null,null,null,null,null,null,null,null,null,null,null,null,null,{"$f":"Apoio!G4","v":"6K"}]
[]
[]
[]
[]
[null,null,null,null,null,null,null,null,null,null,null,null,null,null,null,null,null,null,null,"3#50 COBERTO ",null,null,null,null,null,null,null,null,null,null,null,"3#50 COBERTO ",null,null,null,null,null,null,null,null,null,null,null,null,{"$f":"Apoio!C7","v":""},null,null,null,null,null,{"$f":"CONCATENATE(Apoio!B4, \"A\")","v":"0A"},null,null,null,null,null,null,null,"3*20 A"]
[]
[]
[]
[null,null,null,null,null,null,null,null,null,null,null,null,null,null,null,null,null,null,null,null,null,null,null,null,null,null,null,null,null,null,null,null,null,null,null,null,null,null,null,null,null,null,null,null,null,null,null,null,null,null,null,null,null,null,null,null,null,null,"DPS 242V/5kA(mínimo)"]
[]
[null,null,null,null,null,null,null,null,null,null,null,null,null,null,null,null,null,null,null,null,null,null,null,null,null,null,null,null,null,"12Kv - 10kA"]
[]
[]
[]
[]
[]
[]
[]
[]
[]
[]
[]
[]
[]
[]
[]
[null,null,null,null,null,null,null,null,null,null,null,null,null,null,null,null,null,null,null,null,null,null,null,null,null,null,null,null,null,null,null,null,null,null,null,null,null,null,null,null,null,null,null,null,{"$f":"CONCATENATE(\"6xHASTE COPPERWELD ∅ 5/8 \", 'Tela 4'!E30,\"m\",\" INTERLIGADAS ENTRE SI COM DISTÂNCIA DE \",Apoio!A10,\" METROS UMA DA OUTRA\", )","v":"6xHASTE COPPERWELD ∅ 5/8 m INTERLIGADAS ENTRE SI COM DISTÂNCIA DE 0 METROS UMA DA OUTRA"}]
[]
[]
[null,"DIMENSIONAMENTO AUTOMÁTICO DO RAMAL DE ENTRADA (CONFORME PARÂMETROS INFORMADOS)"]
[]
[]
[]
[]
[]
[]
[null,null,null,null,null,null,null,null,null,null,null,null,null,null,null,null,null,null,null,null,null,"RESUMO DAS INSTALAÇÕES"]
[]
[]
[]
[]
[]
[]
[null,null,null,null,null,null,null,null,null,null,null,null,null,null,null,null,null,null,null,null,null,"Potência do Transformador:",null,null,null,null,null,null,null,null,null,null,null,null,null,null,null,null,null,null,null,null,{"$f":"CONCATENATE('Tela 4'!E14, \"KVA\",\" - \",'Tela 4'!E6)","v":"112,5KVA - 13,8/0,38kV"}]
[]
[]
[]
[]
[]
[null,null,null,null,null,null,null,null,null,null,null,null,null,null,null,null,null,null,null,null,null,"Elo Fusível de Proteção:",null,null,null,null,null,null,null,null,null,null,null,null,null,null,null,null,null,null,null,null,{"$f":"Apoio!G4","v":"6K"}]
[]
[]
[]
[]
[]
[null,null,null,null,null,null,null,null,null,null,null,null,null,null,null,null,null,null,null,null,null,"Disjuntor de proteção baixa tensão (BT)",null,null,null,null,null,null,null,null,null,null,null,null,null,null,null,null,null,null,null,null,{"$f":"Apoio!B4","v":0}]
[]
[]
[]
[]
[]
[null,null,null,null,null,null,null,null,null,null,null,null,null,null,null,null,null,null,null,null,null,"Condutor do ramal de entrada aéreo ",null,null,null,null,null,null,null,null,null,null,null,null,null,null,null,null,null,null,null,null,"Cabo coberto 50mm²"]
[]
[]
[]
[]
[]
[null,null,null,null,null,null,null,null,null,null,null,null,null,null,null,null,null,null,null,null,null,"Isolação do Condutor",null,null,null,null,null,null,null,null,null,null,null,null,null,null,null,null,null,null,null,null,{"$f":"'Tela 4'!E18","v":0}]
[]
[]
[]
[]
[]
[null,null,null,null,null,null,null,null,null,null,null,null,null,null,null,null,null,null,null,null,null,"Eletroduto (diâmetro mínimo em mm)",null,null,null,null,null,null,null,null,null,null,null,null,null,null,null,null,null,null,null,null,{"$f":"Apoio!E7","v":""}]
[]
[]
[]
[]
[]
[null,null,null,null,null,null,null,null,null,null,null,null,null,null,null,null,null,null,null,null,null,"Ligação do Transformador",null,null,null,null,null,null,null,null,null,null,null,null,null,null,null,null,null,null,null,null,{"$f":"IF(13.8,\"Primário: Delta - Secundário: Estrela Aterrada\",)","v":"Primário: Delta - Secundário: Estrela Aterrada"}]
[]
[]
[]
[]
[]
[]
[]
[]
[]
[null,null,null,null,null,null,null,null,null,null,null,null,null,null,null,null,null,null,null,null,null,"TAPs Primários",null,null,null,null,null,null,null,null,null,null,null,null,null,null,null,null,null,null,null,null,"13,8/13,2/12,6"]
[]
[]
[]
[]
[]
[null,null,null,null,null,null,null,null,null,null,null,null,null,null,null,null,null,null,null,null,null,"Classe de Tensão",null,null,null,null,null,null,null,null,null,null,null,null,null,null,null,null,null,null,null,null," 15 KV"]
[]
[]
[]
[]
[]
[null,null,null,null,null,null,null,null,null,null,null,null,null,null,null,null,null,null,null,null,null,"Tipo do Poste ",null,null,null,null,null,null,null,null,null,null,null,null,null,null,null,null,null,null,null,null,{"$f":"'Tela 4'!E25","v":0}]
[]
[]
[]
[]
[]
[]
[]
[]
[]
[null,"OBSERVAÇÕES DO PROJETISTA:"]

{"sheet":"Poli2","index":15,"n_rows":216,"n_cols":59,"rows_kept":216,"cut":false,"hidden":false,"merged":[[89,1,92,83],[58,3,65,12],[1,1,1,17],[9,6,52,7],[58,35,60,39],[58,45,60,49],[1,18,1,83],[2,1,7,83],[9,77,52,78],[13,39,15,45],[17,39,27,45],[33,43,35,45],[59,73,65,82],[60,56,64,64],[112,29,113,33],[158,42,161,62],[97,6,116,7],[99,32,99,39],[100,35,101,45],[101,29,102,31],[106,19,108,23],[106,31,108,35],[106,44,107,49],[106,50,107,53],[128,44,130,69],[131,1,134,83],[110,58,111,66],[107,58,108,63],[204,21,207,41],[204,42,207,62],[182,42,189,62],[139,21,142,62],[146,21,149,41],[146,42,149,62],[152,21,155,41],[152,42,155,62],[158,21,161,41],[192,21,195,41],[192,42,195,62],[198,21,201,41],[198,42,201,62],[182,21,189,41],[219,1,229,83],[215,1,218,83],[70,37,78,47],[86,57,88,57],[37,25,52,30],[37,54,52,59],[42,35,44,37],[42,46,44,48],[50,39,52,41],[50,43,52,51],[164,21,167,41],[164,42,167,62],[170,21,173,41],[170,42,173,62],[176,21,179,41],[176,42,179,62]]}
[]
[null,null,null,null,null,null,null,null,null,null,null,null,null,null,null,null,null,null,"Posto Transformador Aéreo - Interligação Neoenergia Brasília "]
[null,"PLANTA SITUAÇÃO/LOCALIZAÇÃO"]
[]
[]
[]
[]
[]
[]
[]
[]
[]
[]
[null,null,null,null,null,null,null,null,null,null,null,null,null,null,null,null,null,null,null,null,null,null,null,null,null,null,null,null,null,null,null,null,null,null,null,null,null,null,null,"Edificação"]
[]
[]
[]
[null,null,null,null,null,null,null,null,null,null,null,null,null,null,null,null,null,null,null,null,null,null,null,null,null,null,null,null,null,null,null,null,null,null,null,null,null,null,null,{"$f":"'Tela 2'!F23","v":0}]
[]
[]
[]
[]
[]
[]
[]
[]
[]
[]
[]
[]
[]
[]
[]
[]
[]
[]
[]
[]
[]
[]
[]
[]
[]
[]
[]
[]
[]
[]
[]
[]
[]
[]
[]
[]
[]
[]
[]
[]
[]
[]
[]
[]
[]
[]
[]
[]
[]
[]
[]
[]
[]
[]
[]
[]
[]
[]
[]
[]
[]
[]
[]
[]
[]
[]
[]
[]
[]
[]
[]
[null,"DIAGRAMA UNIFILAR (MT/BT)"]
[]
[]
[]
[]
[]
[]
[]
[]
[]
[]
[null,null,null,null,null,null,null,null,null,null,null,null,null,null,null,null,null,null,null,null,null,null,null,null,null,null,null,null,null,null,null,null,null,null,null,{"$f":"AQ147","v":"112,5KVA - 13,8/0,38kV"}]
[null,null,null,null,null,null,null,null,null,null,null,null,null,null,null,null,null,null,null,null,null,null,null,null,null,null,null,null,null,{"$f":"Apoio!G4","v":"6K"}]
[]
[]
[]
[]
[null,null,null,null,null,null,null,null,null,null,null,null,null,null,null,null,null,null,null,"3#50 COBERTO ",null,null,null,null,null,null,null,null,null,null,null,"3#50 COBERTO ",null,null,null,null,null,null,null,null,null,null,null,null,{"$f":"Apoio!C7","v":""},null,null,null,null,null,{"$f":"CONCATENATE(Apoio!B4, \"A\")","v":"0A"}]
[null,null,null,null,null,null,null,null,null,null,null,null,null,null,null,null,null,null,null,null,null,null,null,null,null,null,null,null,null,null,null,null,null,null,null,null,null,null,null,null,null,null,null,null,null,null,null,null,null,null,null,null,null,null,null,null,null,null,"3*20 A"]
[]
[]
[null,null,null,null,null,null,null,null,null,null,null,null,null,null,null,null,null,null,null,null,null,null,null,null,null,null,null,null,null,null,null,null,null,null,null,null,null,null,null,null,null,null,null,null,null,null,null,null,null,null,null,null,null,null,null,null,null,null,"DPS 242V/5kA(mínimo)"]
[]
[null,null,null,null,null,null,null,null,null,null,null,null,null,null,null,null,null,null,null,null,null,null,null,null,null,null,null,null,null,"12Kv - 10kA"]
[]
[]
[]
[]
[]
[]
[]
[]
[]
[]
[]
[]
[]
[]
[]
[null,null,null,null,null,null,null,null,null,null,null,null,null,null,null,null,null,null,null,null,null,null,null,null,null,null,null,null,null,null,null,null,null,null,null,null,null,null,null,null,null,null,null,null,{"$f":"CONCATENATE(\"6xHASTE COPPERWELD ∅ 5/8 \", 'Tela 4'!E30,\"m\",\" INTERLIGADAS ENTRE SI COM DISTÂNCIA DE \",Apoio!A10,\" METROS UMA DA OUTRA\", )","v":"6xHASTE COPPERWELD ∅ 5/8 m INTERLIGADAS ENTRE SI COM DISTÂNCIA DE 0 METROS UMA DA OUTRA"}]
[]
[]
[null,"DIMENSIONAMENTO AUTOMÁTICO DO RAMAL DE ENTRADA (CONFORME PARÂMETROS INFORMADOS)"]
[]
[]
[]
[]
[]
[]
[]
[null,null,null,null,null,null,null,null,null,null,null,null,null,null,null,null,null,null,null,null,null,"RESUMO DAS INSTALAÇÕES"]
[]
[]
[]
[]
[null,null,null,null,null,null,null,null,null,null,null,null,null,null,null,null,null,null,null,"Potência do Transformador:"]
[]
[null,null,null,null,null,null,null,null,null,null,null,null,null,null,null,null,null,null,null,null,null,"Potência do Transformador:",null,null,null,null,null,null,null,null,null,null,null,null,null,null,null,null,null,null,null,null,{"$f":"CONCATENATE('Tela 4'!E14, \"KVA\",\" - \",'Tela 4'!E6)","v":"112,5KVA - 13,8/0,38kV"}]
[]
[]
[]
[]
[]
[null,null,null,null,null,null,null,null,null,null,null,null,null,null,null,null,null,null,null,null,null,"Elo Fusível de Proteção:",null,null,null,null,null,null,null,null,null,null,null,null,null,null,null,null,null,null,null,null,{"$f":"Apoio!G4","v":"6K"}]
[]
[]
[]
[]
[]
[null,null,null,null,null,null,null,null,null,null,null,null,null,null,null,null,null,null,null,null,null,"Disjuntor de proteção baixa tensão (BT)",null,null,null,null,null,null,null,null,null,null,null,null,null,null,null,null,null,null,null,null,{"$f":"Apoio!B4","v":0}]
[]
[]
[]
[]
[]
[null,null,null,null,null,null,null,null,null,null,null,null,null,null,null,null,null,null,null,null,null,"Condutor do ramal de entrada aéreo ",null,null,null,null,null,null,null,null,null,null,null,null,null,null,null,null,null,null,null,null,"Cabo coberto 50mm²"]
[]
[]
[]
[]
[]
[null,null,null,null,null,null,null,null,null,null,null,null,null,null,null,null,null,null,null,null,null,"Isolação do Condutor",null,null,null,null,null,null,null,null,null,null,null,null,null,null,null,null,null,null,null,null,{"$f":"'Tela 4'!E18","v":0}]
[]
[]
[]
[]
[]
[null,null,null,null,null,null,null,null,null,null,null,null,null,null,null,null,null,null,null,null,null,"Eletroduto (diâmetro mínimo em mm)",null,null,null,null,null,null,null,null,null,null,null,null,null,null,null,null,null,null,null,null,{"$f":"Apoio!E7","v":""}]
[]
[]
[]
[]
[]
[null,null,null,null,null,null,null,null,null,null,null,null,null,null,null,null,null,null,null,null,null,"Ligação do Transformador",null,null,null,null,null,null,null,null,null,null,null,null,null,null,null,null,null,null,null,null,{"$f":"IF(13.8,\"Primário: Delta - Secundário: Estrela Aterrada\",)","v":"Primário: Delta - Secundário: Estrela Aterrada"}]
[]
[]
[]
[]
[]
[]
[]
[]
[]
[null,null,null,null,null,null,null,null,null,null,null,null,null,null,null,null,null,null,null,null,null,"TAPs Primários",null,null,null,null,null,null,null,null,null,null,null,null,null,null,null,null,null,null,null,null,"13,8/13,2/12,6"]
[]
[]
[]
[]
[]
[null,null,null,null,null,null,null,null,null,null,null,null,null,null,null,null,null,null,null,null,null,"Classe de Tensão",null,null,null,null,null,null,null,null,null,null,null,null,null,null,null,null,null,null,null,null," 15 KV"]
[]
[]
[]
[]
[]
[null,null,null,null,null,null,null,null,null,null,null,null,null,null,null,null,null,null,null,null,null,"Tipo",null,null,null,null,null,null,null,null,null,null,null,null,null,null,null,null,null,null,null,null,{"$f":"'Tela 4'!E25","v":0}]
[]
[]
[]
[]
[]
[]
[]
[]
[]
[]
[null,"OBSERVAÇÕES DO PROJETISTA:"]

{"sheet":"Poli3","index":16,"n_rows":214,"n_cols":59,"rows_kept":214,"cut":false,"hidden":false,"merged":[[100,35,101,45],[1,1,1,17],[9,6,52,7],[2,1,7,83],[1,18,1,83],[37,25,52,30],[37,54,52,59],[42,35,44,37],[42,46,44,48],[50,39,52,41],[50,43,52,51],[9,77,52,78],[13,39,15,45],[17,39,27,45],[33,43,35,45],[213,1,216,83],[59,73,65,82],[58,3,65,12],[145,21,148,41],[145,42,148,62],[138,21,141,62],[131,1,134,83],[70,37,78,47],[86,57,88,57],[89,1,92,83],[128,44,130,69],[97,6,116,7],[99,32,99,39],[112,29,113,33],[101,29,102,31],[106,50,107,53],[191,42,194,62],[197,21,200,41],[197,42,200,62],[203,21,206,41],[203,42,206,62],[110,58,111,67],[106,58,107,61],[106,19,108,23],[106,31,108,35],[106,44,107,49],[217,1,225,83],[61,62,61,64],[61,55,61,58],[181,21,188,41],[181,42,188,62],[151,21,154,41],[151,42,154,62],[157,21,160,41],[157,42,160,62],[163,21,166,41],[163,42,166,62],[169,21,172,41],[169,42,172,62],[175,21,178,41],[175,42,178,62],[191,21,194,41]]}
[]
[null,null,null,null,null,null,null,null,null,null,null,null,null,null,null,null,null,null,"Posto Transformador Aéreo - Interligação Neoenergia Brasília "]
[null,"PLANTA SITUAÇÃO/LOCALIZAÇÃO"]
[]
[]
[]
[]
[]
[]
[]
[]
[]
[]
[null,null,null,null,null,null,null,null,null,null,null,null,null,null,null,null,null,null,null,null,null,null,null,null,null,null,null,null,null,null,null,null,null,null,null,null,null,null,null,"Edificação"]
[]
[]
[]
[null,null,null,null,null,null,null,null,null,null,null,null,null,null,null,null,null,null,null,null,null,null,null,null,null,null,null,null,null,null,null,null,null,null,null,null,null,null,null,{"$f":"'Tela 2'!F23","v":0}]
[]
[]
[]
[]
[]
[]
[]
[]
[]
[]
[]
[]
[]
[]
[]
[]
[]
[]
[]
[]
[]
[]
[]
[]
[]
[]
[]
[]
[]
[]
[]
[]
[]
[]
[]
[]
[]
[]
[]
[]
[]
[]
[]
[]
[]
[]
[]
[]
[]
[]
[]
[]
[]
[]
[]
[]
[]
[]
[]
[]
[]
[]
[]
[]
[]
[]
[]
[]
[]
[]
[]
[null,"DIAGRAMA UNIFILAR (MT/BT)"]
[]
[]
[]
[]
[]
[]
[]
[]
[]
[]
[null,null,null,null,null,null,null,null,null,null,null,null,null,null,null,null,null,null,null,null,null,null,null,null,null,null,null,null,null,null,null,null,null,null,null,{"$f":"AQ146","v":"112,5KVA - 13,8/0,38kV"}]
[null,null,null,null,null,null,null,null,null,null,null,null,null,null,null,null,null,null,null,null,null,null,null,null,null,null,null,null,null,{"$f":"Apoio!G4","v":"6K"}]
[]
[]
[]
[]
[null,null,null,null,null,null,null,null,null,null,null,null,null,null,null,null,null,null,null,"3#50 COBERTO ",null,null,null,null,null,null,null,null,null,null,null,"3#50 COBERTO ",null,null,null,null,null,null,null,null,null,null,null,null,{"$f":"Apoio!C7","v":""},null,null,null,null,null,{"$f":"CONCATENATE(Apoio!B4, \"A\")","v":"0A"},null,null,null,null,null,null,null,"3*20 A"]
[]
[]
[]
[null,null,null,null,null,null,null,null,null,null,null,null,null,null,null,null,null,null,null,null,null,null,null,null,null,null,null,null,null,null,null,null,null,null,null,null,null,null,null,null,null,null,null,null,null,null,null,null,null,null,null,null,null,null,null,null,null,null,"DPS 242V/5kA(mínimo)"]
[]
[null,null,null,null,null,null,null,null,null,null,null,null,null,null,null,null,null,null,null,null,null,null,null,null,null,null,null,null,null,"12Kv - 10kA"]
[]
[]
[]
[]
[]
[]
[]
[]
[]
[]
[]
[]
[]
[]
[]
[null,null,null,null,null,null,null,null,null,null,null,null,null,null,null,null,null,null,null,null,null,null,null,null,null,null,null,null,null,null,null,null,null,null,null,null,null,null,null,null,null,null,null,null,{"$f":"CONCATENATE(\"6xHASTE COPPERWELD ∅ 5/8 \", 'Tela 4'!E30,\"m\",\" INTERLIGADAS ENTRE SI COM DISTÂNCIA DE \",Apoio!A10,\" METROS UMA DA OUTRA\", )","v":"6xHASTE COPPERWELD ∅ 5/8 m INTERLIGADAS ENTRE SI COM DISTÂNCIA DE 0 METROS UMA DA OUTRA"}]
[]
[]
[null,"DIMENSIONAMENTO AUTOMÁTICO DO RAMAL DE ENTRADA (CONFORME PARÂMETROS INFORMADOS)"]
[]
[]
[]
[]
[]
[]
[null,null,null,null,null,null,null,null,null,null,null,null,null,null,null,null,null,null,null,null,null,"RESUMO DAS INSTALAÇÕES"]
[]
[]
[]
[]
[]
[]
[null,null,null,null,null,null,null,null,null,null,null,null,null,null,null,null,null,null,null,null,null,"Potência do Transformador:",null,null,null,null,null,null,null,null,null,null,null,null,null,null,null,null,null,null,null,null,{"$f":"CONCATENATE('Tela 4'!E14, \"KVA\",\" - \",'Tela 4'!E6)","v":"112,5KVA - 13,8/0,38kV"}]
[]
[]
[]
[]
[]
[null,null,null,null,null,null,null,null,null,null,null,null,null,null,null,null,null,null,null,null,null,"Elo Fusível de Proteção:",null,null,null,null,null,null,null,null,null,null,null,null,null,null,null,null,null,null,null,null,{"$f":"Apoio!G4","v":"6K"}]
[]
[]
[]
[]
[]
[null,null,null,null,null,null,null,null,null,null,null,null,null,null,null,null,null,null,null,null,null,"Disjuntor de proteção baixa tensão (BT)",null,null,null,null,null,null,null,null,null,null,null,null,null,null,null,null,null,null,null,null,{"$f":"Apoio!B4","v":0}]
[]
[]
[]
[]
[]
[null,null,null,null,null,null,null,null,null,null,null,null,null,null,null,null,null,null,null,null,null,"Condutor do ramal de entrada aéreo ",null,null,null,null,null,null,null,null,null,null,null,null,null,null,null,null,null,null,null,null,"Cabo coberto 50mm²"]
[]
[]
[]
[]
[]
[null,null,null,null,null,null,null,null,null,null,null,null,null,null,null,null,null,null,null,null,null,"Isolação do Condutor",null,null,null,null,null,null,null,null,null,null,null,null,null,null,null,null,null,null,null,null,{"$f":"'Tela 4'!E18","v":0}]
[]
[]
[]
[]
[]
[null,null,null,null,null,null,null,null,null,null,null,null,null,null,null,null,null,null,null,null,null,"Eletroduto (diâmetro mínimo em mm)",null,null,null,null,null,null,null,null,null,null,null,null,null,null,null,null,null,null,null,null,{"$f":"Apoio!E7","v":""}]
[]
[]
[]
[]
[]
[null,null,null,null,null,null,null,null,null,null,null,null,null,null,null,null,null,null,null,null,null,"Ligação do Transformador",null,null,null,null,null,null,null,null,null,null,null,null,null,null,null,null,null,null,null,null,{"$f":"IF(13.8,\"Primário: Delta - Secundário: Estrela Aterrada\",)","v":"Primário: Delta - Secundário: Estrela Aterrada"}]
[]
[]
[]
[]
[]
[]
[]
[]
[]
[null,null,null,null,null,null,null,null,null,null,null,null,null,null,null,null,null,null,null,null,null,"TAPs Primários",null,null,null,null,null,null,null,null,null,null,null,null,null,null,null,null,null,null,null,null,"13,8/13,2/12,6"]
[]
[]
[]
[]
[]
[null,null,null,null,null,null,null,null,null,null,null,null,null,null,null,null,null,null,null,null,null,"Classe de Tensão",null,null,null,null,null,null,null,null,null,null,null,null,null,null,null,null,null,null,null,null," 15 KV"]
[]
[]
[]
[]
[]
[null,null,null,null,null,null,null,null,null,null,null,null,null,null,null,null,null,null,null,null,null,"Tipo do Poste ",null,null,null,null,null,null,null,null,null,null,null,null,null,null,null,null,null,null,null,null,{"$f":"'Tela 4'!E25","v":0}]
[]
[]
[]
[]
[]
[]
[]
[]
[]
[null,"OBSERVAÇÕES DO PROJETISTA:"]

{"sheet":"P1_1","index":17,"n_rows":214,"n_cols":57,"rows_kept":214,"cut":false,"hidden":false,"merged":[[1,1,1,17],[9,6,52,7],[50,39,52,41],[50,43,52,51],[2,1,7,83],[1,18,1,83],[37,25,52,30],[9,77,52,78],[13,39,15,45],[17,39,27,45],[33,43,35,45],[37,54,52,59],[42,35,44,37],[42,46,44,48],[58,3,65,12],[106,19,108,23],[100,35,101,45],[99,32,99,39],[86,57,88,57],[58,35,60,39],[58,45,60,49],[101,29,102,31],[107,56,110,65],[106,31,108,35],[106,50,107,53],[106,44,107,49],[89,1,92,83],[59,73,65,82],[60,56,64,64],[70,37,78,47],[97,6,116,7],[151,42,154,62],[157,21,160,41],[157,42,160,62],[163,21,166,41],[163,42,166,62],[145,21,148,41],[145,42,148,62],[138,21,141,62],[128,44,129,69],[112,29,113,33],[217,1,225,83],[181,21,188,41],[181,42,188,62],[151,21,154,41],[130,1,133,83],[191,21,194,41],[191,42,194,62],[197,21,200,41],[197,42,200,62],[203,21,206,41],[203,42,206,62],[213,1,216,83],[169,21,172,41],[169,42,172,62],[175,21,178,41],[175,42,178,62]]}
[]
[null,null,null,null,null,null,null,null,null,null,null,null,null,null,null,null,null,null,"Posto Transformador Aéreo - Interligação Neoenergia Brasília "]
[null,"PLANTA SITUAÇÃO/LOCALIZAÇÃO"]
[]
[]
[]
[]
[]
[]
[]
[]
[]
[]
[null,null,null,null,null,null,null,null,null,null,null,null,null,null,null,null,null,null,null,null,null,null,null,null,null,null,null,null,null,null,null,null,null,null,null,null,null,null,null,"Edificação"]
[]
[]
[]
[null,null,null,null,null,null,null,null,null,null,null,null,null,null,null,null,null,null,null,null,null,null,null,null,null,null,null,null,null,null,null,null,null,null,null,null,null,null,null,{"$f":"'Tela 2'!F23","v":0}]
[]
[]
[]
[]
[]
[]
[]
[]
[]
[]
[]
[]
[]
[]
[]
[]
[]
[]
[]
[]
[]
[]
[]
[]
[]
[]
[]
[]
[]
[]
[]
[]
[]
[]
[]
[]
[]
[]
[]
[]
[]
[]
[]
[]
[]
[]
[]
[]
[]
[]
[]
[]
[]
[]
[]
[]
[]
[]
[]
[]
[]
[]
[]
[]
[]
[]
[]
[]
[]
[]
[]
[null,"DIAGRAMA UNIFILAR (MT/BT)"]
[]
[]
[]
[]
[]
[]
[]
[]
[]
[]
[null,null,null,null,null,null,null,null,null,null,null,null,null,null,null,null,null,null,null,null,null,null,null,null,null,null,null,null,null,null,null,null,null,null,null,{"$f":"AQ146","v":"112,5KVA - 13,8/0,38kV"}]
[null,null,null,null,null,null,null,null,null,null,null,null,null,null,null,null,null,null,null,null,null,null,null,null,null,null,null,null,null,{"$f":"Apoio!G4","v":"6K"}]
[]
[]
[]
[]
[null,null,null,null,null,null,null,null,null,null,null,null,null,null,null,null,null,null,null,"3#50 COBERTO ",null,null,null,null,null,null,null,null,null,null,null,"3#50 COBERTO ",null,null,null,null,null,null,null,null,null,null,null,null,{"$f":"Apoio!C7","v":""},null,null,null,null,null,{"$f":"CONCATENATE(Apoio!B4, \"A\")","v":"0A"}]
[null,null,null,null,null,null,null,null,null,null,null,null,null,null,null,null,null,null,null,null,null,null,null,null,null,null,null,null,null,null,null,null,null,null,null,null,null,null,null,null,null,null,null,null,null,null,null,null,null,null,null,null,null,null,null,null,"DPS 242V/5kA(mínimo)"]
[]
[]
[]
[]
[null,null,null,null,null,null,null,null,null,null,null,null,null,null,null,null,null,null,null,null,null,null,null,null,null,null,null,null,null,"12Kv - 10kA"]
[]
[]
[]
[]
[]
[]
[]
[]
[]
[]
[]
[]
[]
[]
[]
[null,null,null,null,null,null,null,null,null,null,null,null,null,null,null,null,null,null,null,null,null,null,null,null,null,null,null,null,null,null,null,null,null,null,null,null,null,null,null,null,null,null,null,null,{"$f":"CONCATENATE(\"6xHASTE COPPERWELD ∅ 5/8 \", 'Tela 4'!E30,\"m\",\" INTERLIGADAS ENTRE SI COM DISTÂNCIA DE \",Apoio!A10,\" METROS UMA DA OUTRA.\", )","v":"6xHASTE COPPERWELD ∅ 5/8 m INTERLIGADAS ENTRE SI COM DISTÂNCIA DE 0 METROS UMA DA OUTRA."}]
[]
[null,"DIMENSIONAMENTO AUTOMÁTICO DO RAMAL DE ENTRADA (CONFORME PARÂMETROS INFORMADOS)"]
[]
[]
[]
[]
[]
[]
[]
[null,null,null,null,null,null,null,null,null,null,null,null,null,null,null,null,null,null,null,null,null,"RESUMO DAS INSTALAÇÕES"]
[]
[]
[]
[]
[]
[]
[null,null,null,null,null,null,null,null,null,null,null,null,null,null,null,null,null,null,null,null,null,"Potência do Transformador:",null,null,null,null,null,null,null,null,null,null,null,null,null,null,null,null,null,null,null,null,{"$f":"CONCATENATE('Tela 4'!E14, \"KVA\",\" - \",'Tela 4'!E6)","v":"112,5KVA - 13,8/0,38kV"}]
[]
[]
[]
[]
[]
[null,null,null,null,null,null,null,null,null,null,null,null,null,null,null,null,null,null,null,null,null,"Elo Fusível de Proteção:",null,null,null,null,null,null,null,null,null,null,null,null,null,null,null,null,null,null,null,null,{"$f":"Apoio!G4","v":"6K"}]
[]
[]
[]
[]
[]
[null,null,null,null,null,null,null,null,null,null,null,null,null,null,null,null,null,null,null,null,null,"Disjuntor de proteção baixa tensão (BT)",null,null,null,null,null,null,null,null,null,null,null,null,null,null,null,null,null,null,null,null,{"$f":"Apoio!B4","v":0}]
[]
[]
[]
[]
[]
[null,null,null,null,null,null,null,null,null,null,null,null,null,null,null,null,null,null,null,null,null,"Condutor do ramal de entrada aéreo ",null,null,null,null,null,null,null,null,null,null,null,null,null,null,null,null,null,null,null,null,"Cabo coberto 50mm²"]
[]
[]
[]
[]
[]
[null,null,null,null,null,null,null,null,null,null,null,null,null,null,null,null,null,null,null,null,null,"Isolação do Condutor",null,null,null,null,null,null,null,null,null,null,null,null,null,null,null,null,null,null,null,null,{"$f":"'Tela 4'!E18","v":0}]
[]
[]
[]
[]
[]
[null,null,null,null,null,null,null,null,null,null,null,null,null,null,null,null,null,null,null,null,null,"Eletroduto (diâmetro mínimo em mm)",null,null,null,null,null,null,null,null,null,null,null,null,null,null,null,null,null,null,null,null,{"$f":"Apoio!E7","v":""}]
[]
[]
[]
[]
[]
[null,null,null,null,null,null,null,null,null,null,null,null,null,null,null,null,null,null,null,null,null,"Ligação do Transformador",null,null,null,null,null,null,null,null,null,null,null,null,null,null,null,null,null,null,null,null,{"$f":"IF(13.8,\"Primário: Delta - Secundário: Estrela Aterrada\",)","v":"Primário: Delta - Secundário: Estrela Aterrada"}]
[]
[]
[]
[]
[]
[]
[]
[]
[]
[null,null,null,null,null,null,null,null,null,null,null,null,null,null,null,null,null,null,null,null,null,"TAPs Primários",null,null,null,null,null,null,null,null,null,null,null,null,null,null,null,null,null,null,null,null,"13,8/13,2/12,6"]
[]
[]
[]
[]
[]
[null,null,null,null,null,null,null,null,null,null,null,null,null,null,null,null,null,null,null,null,null,"Classe de Tensão",null,null,null,null,null,null,null,null,null,null,null,null,null,null,null,null,null,null,null,null," 15 KV"]
[]
[]
[]
[]
[]
[null,null,null,null,null,null,null,null,null,null,null,null,null,null,null,null,null,null,null,null,null,"Tipo do Poste ",null,null,null,null,null,null,null,null,null,null,null,null,null,null,null,null,null,null,null,null,{"$f":"'Tela 4'!E25","v":0}]
[]
[]
[]
[]
[]
[]
[]
[]
[]
[null,"OBSERVAÇÕES DO PROJETISTA:"]

{"sheet":"P1_2","index":18,"n_rows":215,"n_cols":57,"rows_kept":215,"cut":false,"hidden":false,"merged":[[1,1,1,17],[9,6,52,7],[58,35,60,39],[58,45,60,49],[59,73,65,82],[60,56,64,64],[58,3,65,12],[2,1,7,83],[1,18,1,83],[139,21,142,62],[97,6,116,7],[99,32,99,39],[100,35,101,45],[128,44,130,69],[106,31,108,35],[101,29,102,31],[106,19,108,23],[131,1,134,83],[170,21,173,41],[170,42,173,62],[176,21,179,41],[176,42,179,62],[106,44,107,49],[106,50,107,53],[107,56,110,65],[112,29,113,33],[152,21,155,41],[152,42,155,62],[158,21,161,41],[158,42,161,62],[164,21,167,41],[164,42,167,62],[146,21,149,41],[146,42,149,62],[204,21,207,41],[204,42,207,62],[182,21,189,41],[182,42,189,62],[198,21,201,41],[192,21,195,41],[192,42,195,62],[214,1,217,83],[218,1,227,83],[89,1,92,83],[37,25,52,30],[37,54,52,59],[42,35,44,37],[42,46,44,48],[50,39,52,41],[50,43,52,51],[70,37,78,47],[86,57,88,57],[9,77,52,78],[13,39,15,45],[17,39,27,45],[33,43,35,45],[198,42,201,62]]}
[]
[null,null,null,null,null,null,null,null,null,null,null,null,null,null,null,null,null,null,"Posto Transformador Aéreo - Interligação Neoenergia Brasília "]
[null,"PLANTA SITUAÇÃO/LOCALIZAÇÃO"]
[]
[]
[]
[]
[]
[]
[]
[]
[]
[]
[null,null,null,null,null,null,null,null,null,null,null,null,null,null,null,null,null,null,null,null,null,null,null,null,null,null,null,null,null,null,null,null,null,null,null,null,null,null,null,"Edificação"]
[]
[]
[]
[null,null,null,null,null,null,null,null,null,null,null,null,null,null,null,null,null,null,null,null,null,null,null,null,null,null,null,null,null,null,null,null,null,null,null,null,null,null,null,{"$f":"'Tela 2'!F23","v":0}]
[]
[]
[]
[]
[]
[]
[]
[]
[]
[]
[]
[]
[]
[]
[]
[]
[]
[]
[]
[]
[]
[]
[]
[]
[]
[]
[]
[]
[]
[]
[]
[]
[]
[]
[]
[]
[]
[]
[]
[]
[]
[]
[]
[]
[]
[]
[]
[]
[]
[]
[]
[]
[]
[]
[]
[]
[]
[]
[]
[]
[]
[]
[]
[]
[]
[]
[]
[]
[]
[]
[]
[null,"DIAGRAMA UNIFILAR (MT/BT)"]
[]
[]
[]
[]
[]
[]
[]
[]
[]
[]
[null,null,null,null,null,null,null,null,null,null,null,null,null,null,null,null,null,null,null,null,null,null,null,null,null,null,null,null,null,null,null,null,null,null,null,{"$f":"AQ147","v":"112,5KVA - 13,8/0,38kV"}]
[null,null,null,null,null,null,null,null,null,null,null,null,null,null,null,null,null,null,null,null,null,null,null,null,null,null,null,null,null,{"$f":"Apoio!G4","v":"6K"}]
[]
[]
[]
[]
[null,null,null,null,null,null,null,null,null,null,null,null,null,null,null,null,null,null,null,"3#50 COBERTO ",null,null,null,null,null,null,null,null,null,null,null,"3#50 COBERTO ",null,null,null,null,null,null,null,null,null,null,null,null,{"$f":"Apoio!C7","v":""},null,null,null,null,null,{"$f":"CONCATENATE(Apoio!B4, \"A\")","v":"0A"}]
[null,null,null,null,null,null,null,null,null,null,null,null,null,null,null,null,null,null,null,null,null,null,null,null,null,null,null,null,null,null,null,null,null,null,null,null,null,null,null,null,null,null,null,null,null,null,null,null,null,null,null,null,null,null,null,null,"DPS 242V/5kA(mínimo)"]
[]
[]
[]
[]
[null,null,null,null,null,null,null,null,null,null,null,null,null,null,null,null,null,null,null,null,null,null,null,null,null,null,null,null,null,"12Kv - 10kA"]
[]
[]
[]
[]
[]
[]
[]
[]
[]
[]
[]
[]
[]
[]
[]
[null,null,null,null,null,null,null,null,null,null,null,null,null,null,null,null,null,null,null,null,null,null,null,null,null,null,null,null,null,null,null,null,null,null,null,null,null,null,null,null,null,null,null,null,{"$f":"CONCATENATE(\"6xHASTE COPPERWELD ∅ 5/8 \", 'Tela 4'!E30,\"m\",\" INTERLIGADAS ENTRE SI COM DISTÂNCIA DE \",Apoio!A10,\" METROS UMA DA OUTRA.\", )","v":"6xHASTE COPPERWELD ∅ 5/8 m INTERLIGADAS ENTRE SI COM DISTÂNCIA DE 0 METROS UMA DA OUTRA."}]
[]
[]
[null,"DIMENSIONAMENTO AUTOMÁTICO DO RAMAL DE ENTRADA (CONFORME PARÂMETROS INFORMADOS)"]
[]
[]
[]
[]
[]
[]
[]
[null,null,null,null,null,null,null,null,null,null,null,null,null,null,null,null,null,null,null,null,null,"RESUMO DAS INSTALAÇÕES"]
[]
[]
[]
[]
[null,null,null,null,null,null,null,null,null,null,null,null,null,null,null,null,null,null,null,"Potência do Transformador:"]
[]
[null,null,null,null,null,null,null,null,null,null,null,null,null,null,null,null,null,null,null,null,null,"Potência do Transformador:",null,null,null,null,null,null,null,null,null,null,null,null,null,null,null,null,null,null,null,null,{"$f":"CONCATENATE('Tela 4'!E14, \"KVA\",\" - \",'Tela 4'!E6)","v":"112,5KVA - 13,8/0,38kV"}]
[]
[]
[]
[]
[]
[null,null,null,null,null,null,null,null,null,null,null,null,null,null,null,null,null,null,null,null,null,"Elo Fusível de Proteção:",null,null,null,null,null,null,null,null,null,null,null,null,null,null,null,null,null,null,null,null,{"$f":"Apoio!G4","v":"6K"}]
[]
[]
[]
[]
[]
[null,null,null,null,null,null,null,null,null,null,null,null,null,null,null,null,null,null,null,null,null,"Disjuntor de proteção baixa tensão (BT)",null,null,null,null,null,null,null,null,null,null,null,null,null,null,null,null,null,null,null,null,{"$f":"Apoio!B4","v":0}]
[]
[]
[]
[]
[]
[null,null,null,null,null,null,null,null,null,null,null,null,null,null,null,null,null,null,null,null,null,"Condutor do ramal de entrada aéreo ",null,null,null,null,null,null,null,null,null,null,null,null,null,null,null,null,null,null,null,null,"Cabo coberto 50mm²"]
[]
[]
[]
[]
[]
[null,null,null,null,null,null,null,null,null,null,null,null,null,null,null,null,null,null,null,null,null,"Isolação do Condutor",null,null,null,null,null,null,null,null,null,null,null,null,null,null,null,null,null,null,null,null,{"$f":"'Tela 4'!E18","v":0}]
[]
[]
[]
[]
[]
[null,null,null,null,null,null,null,null,null,null,null,null,null,null,null,null,null,null,null,null,null,"Eletroduto (diâmetro mínimo em mm)",null,null,null,null,null,null,null,null,null,null,null,null,null,null,null,null,null,null,null,null,{"$f":"Apoio!E7","v":""}]
[]
[]
[]
[]
[]
[null,null,null,null,null,null,null,null,null,null,null,null,null,null,null,null,null,null,null,null,null,"Ligação do Transformador",null,null,null,null,null,null,null,null,null,null,null,null,null,null,null,null,null,null,null,null,{"$f":"IF(13.8,\"Primário: Delta - Secundário: Estrela Aterrada\",)","v":"Primário: Delta - Secundário: Estrela Aterrada"}]
[]
[]
[]
[]
[]
[]
[]
[]
[]
[null,null,null,null,null,null,null,null,null,null,null,null,null,null,null,null,null,null,null,null,null,"TAPs Primários",null,null,null,null,null,null,null,null,null,null,null,null,null,null,null,null,null,null,null,null,"13,8/13,2/12,6"]
[]
[]
[]
[]
[]
[null,null,null,null,null,null,null,null,null,null,null,null,null,null,null,null,null,null,null,null,null,"Classe de Tensão",null,null,null,null,null,null,null,null,null,null,null,null,null,null,null,null,null,null,null,null," 15 KV"]
[]
[]
[]
[]
[]
[null,null,null,null,null,null,null,null,null,null,null,null,null,null,null,null,null,null,null,null,null,"Tipo",null,null,null,null,null,null,null,null,null,null,null,null,null,null,null,null,null,null,null,null,{"$f":"'Tela 4'!E25","v":0}]
[]
[]
[]
[]
[]
[]
[]
[]
[]
[null,"OBSERVAÇÕES DO PROJETISTA:"]

{"sheet":"P1_3","index":19,"n_rows":214,"n_cols":57,"rows_kept":214,"cut":false,"hidden":false,"merged":[[1,1,1,17],[9,6,52,7],[106,50,107,53],[107,56,110,65],[112,29,113,33],[58,3,65,12],[101,29,102,31],[106,19,108,23],[106,31,108,35],[106,44,107,49],[50,39,52,41],[50,43,52,51],[1,18,1,83],[89,1,92,83],[2,1,7,83],[9,77,52,78],[138,21,141,62],[97,6,116,7],[99,32,99,39],[100,35,101,45],[128,44,129,69],[130,1,133,83],[203,21,206,41],[203,42,206,62],[213,1,216,83],[145,21,148,41],[145,42,148,62],[175,21,178,41],[175,42,178,62],[191,21,194,41],[191,42,194,62],[197,21,200,41],[197,42,200,62],[13,39,15,45],[17,39,27,45],[33,43,35,45],[37,25,52,30],[37,54,52,59],[42,35,44,37],[42,46,44,48],[217,1,226,83],[61,56,61,58],[61,61,61,64],[59,73,65,82],[70,37,78,47],[86,57,88,57],[181,21,188,41],[181,42,188,62],[151,21,154,41],[151,42,154,62],[157,21,160,41],[157,42,160,62],[163,21,166,41],[163,42,166,62],[169,21,172,41],[169,42,172,62]]}
[]
[null,null,null,null,null,null,null,null,null,null,null,null,null,null,null,null,null,null,"Posto Transformador Aéreo - Interligação Neoenergia Brasília "]
[null,"PLANTA SITUAÇÃO/LOCALIZAÇÃO"]
[]
[]
[]
[]
[]
[]
[]
[]
[]
[]
[null,null,null,null,null,null,null,null,null,null,null,null,null,null,null,null,null,null,null,null,null,null,null,null,null,null,null,null,null,null,null,null,null,null,null,null,null,null,null,"Edificação"]
[]
[]
[]
[null,null,null,null,null,null,null,null,null,null,null,null,null,null,null,null,null,null,null,null,null,null,null,null,null,null,null,null,null,null,null,null,null,null,null,null,null,null,null,{"$f":"'Tela 2'!F23","v":0}]
[]
[]
[]
[]
[]
[]
[]
[]
[]
[]
[]
[]
[]
[]
[]
[]
[]
[]
[]
[]
[]
[]
[]
[]
[]
[]
[]
[]
[]
[]
[]
[]
[]
[]
[]
[]
[]
[]
[]
[]
[]
[]
[]
[]
[]
[]
[]
[]
[]
[]
[]
[]
[]
[]
[]
[]
[]
[]
[]
[]
[]
[]
[]
[]
[]
[]
[]
[]
[]
[]
[]
[null,"DIAGRAMA UNIFILAR (MT/BT)"]
[]
[]
[]
[]
[]
[]
[]
[]
[]
[]
[null,null,null,null,null,null,null,null,null,null,null,null,null,null,null,null,null,null,null,null,null,null,null,null,null,null,null,null,null,null,null,null,null,null,null,{"$f":"AQ146","v":"112,5KVA - 13,8/0,38kV"}]
[null,null,null,null,null,null,null,null,null,null,null,null,null,null,null,null,null,null,null,null,null,null,null,null,null,null,null,null,null,{"$f":"Apoio!G4","v":"6K"}]
[]
[]
[]
[]
[null,null,null,null,null,null,null,null,null,null,null,null,null,null,null,null,null,null,null,"3#50 COBERTO ",null,null,null,null,null,null,null,null,null,null,null,"3#50 COBERTO ",null,null,null,null,null,null,null,null,null,null,null,null,{"$f":"Apoio!C7","v":""},null,null,null,null,null,{"$f":"CONCATENATE(Apoio!B4, \"A\")","v":"0A"}]
[null,null,null,null,null,null,null,null,null,null,null,null,null,null,null,null,null,null,null,null,null,null,null,null,null,null,null,null,null,null,null,null,null,null,null,null,null,null,null,null,null,null,null,null,null,null,null,null,null,null,null,null,null,null,null,null,"DPS 242V/5kA(mínimo)"]
[]
[]
[]
[]
[null,null,null,null,null,null,null,null,null,null,null,null,null,null,null,null,null,null,null,null,null,null,null,null,null,null,null,null,null,"12Kv - 10kA"]
[]
[]
[]
[]
[]
[]
[]
[]
[]
[]
[]
[]
[]
[]
[]
[null,null,null,null,null,null,null,null,null,null,null,null,null,null,null,null,null,null,null,null,null,null,null,null,null,null,null,null,null,null,null,null,null,null,null,null,null,null,null,null,null,null,null,null,{"$f":"CONCATENATE(\"6xHASTE COPPERWELD ∅ 5/8 \", 'Tela 4'!E30,\"m\",\" INTERLIGADAS ENTRE SI COM DISTÂNCIA DE \",Apoio!A10,\" METROS UMA DA OUTRA.\", )","v":"6xHASTE COPPERWELD ∅ 5/8 m INTERLIGADAS ENTRE SI COM DISTÂNCIA DE 0 METROS UMA DA OUTRA."}]
[]
[null,"DIMENSIONAMENTO AUTOMÁTICO DO RAMAL DE ENTRADA (CONFORME PARÂMETROS INFORMADOS)"]
[]
[]
[]
[]
[]
[]
[]
[null,null,null,null,null,null,null,null,null,null,null,null,null,null,null,null,null,null,null,null,null,"RESUMO DAS INSTALAÇÕES"]
[]
[]
[]
[]
[]
[]
[null,null,null,null,null,null,null,null,null,null,null,null,null,null,null,null,null,null,null,null,null,"Potência do Transformador:",null,null,null,null,null,null,null,null,null,null,null,null,null,null,null,null,null,null,null,null,{"$f":"CONCATENATE('Tela 4'!E14, \"KVA\",\" - \",'Tela 4'!E6)","v":"112,5KVA - 13,8/0,38kV"}]
[]
[]
[]
[]
[]
[null,null,null,null,null,null,null,null,null,null,null,null,null,null,null,null,null,null,null,null,null,"Elo Fusível de Proteção:",null,null,null,null,null,null,null,null,null,null,null,null,null,null,null,null,null,null,null,null,{"$f":"Apoio!G4","v":"6K"}]
[]
[]
[]
[]
[]
[null,null,null,null,null,null,null,null,null,null,null,null,null,null,null,null,null,null,null,null,null,"Disjuntor de proteção baixa tensão (BT)",null,null,null,null,null,null,null,null,null,null,null,null,null,null,null,null,null,null,null,null,{"$f":"Apoio!B4","v":0}]
[]
[]
[]
[]
[]
[null,null,null,null,null,null,null,null,null,null,null,null,null,null,null,null,null,null,null,null,null,"Condutor do ramal de entrada aéreo ",null,null,null,null,null,null,null,null,null,null,null,null,null,null,null,null,null,null,null,null,"Cabo coberto 50mm²"]
[]
[]
[]
[]
[]
[null,null,null,null,null,null,null,null,null,null,null,null,null,null,null,null,null,null,null,null,null,"Isolação do Condutor",null,null,null,null,null,null,null,null,null,null,null,null,null,null,null,null,null,null,null,null,{"$f":"'Tela 4'!E18","v":0}]
[]
[]
[]
[]
[]
[null,null,null,null,null,null,null,null,null,null,null,null,null,null,null,null,null,null,null,null,null,"Eletroduto (diâmetro mínimo em mm)",null,null,null,null,null,null,null,null,null,null,null,null,null,null,null,null,null,null,null,null,{"$f":"Apoio!E7","v":""}]
[]
[]
[]
[]
[]
[null,null,null,null,null,null,null,null,null,null,null,null,null,null,null,null,null,null,null,null,null,"Ligação do Transformador",null,null,null,null,null,null,null,null,null,null,null,null,null,null,null,null,null,null,null,null,{"$f":"IF(13.8,\"Primário: Delta - Secundário: Estrela Aterrada\",)","v":"Primário: Delta - Secundário: Estrela Aterrada"}]
[]
[]
[]
[]
[]
[]
[]
[]
[]
[null,null,null,null,null,null,null,null,null,null,null,null,null,null,null,null,null,null,null,null,null,"TAPs Primários",null,null,null,null,null,null,null,null,null,null,null,null,null,null,null,null,null,null,null,null,"13,8/13,2/12,6"]
[]
[]
[]
[]
[]
[null,null,null,null,null,null,null,null,null,null,null,null,null,null,null,null,null,null,null,null,null,"Classe de Tensão",null,null,null,null,null,null,null,null,null,null,null,null,null,null,null,null,null,null,null,null," 15 KV"]
[]
[]
[]
[]
[]
[null,null,null,null,null,null,null,null,null,null,null,null,null,null,null,null,null,null,null,null,null,"Tipo do Poste ",null,null,null,null,null,null,null,null,null,null,null,null,null,null,null,null,null,null,null,null,{"$f":"'Tela 4'!E25","v":0}]
[]
[]
[]
[]
[]
[null,null,null,null,null,null,null,null,null,null,null,null,null,null,null,null,null,null,null,null,null,"Detalhes Construtivos(Posto Transformador)"]
[]
[]
[]
[null,"OBSERVAÇÕES DO PROJETISTA:"]

{"sheet":"POSTE COMPAC_TR","index":20,"n_rows":112,"n_cols":5,"rows_kept":112,"cut":false,"hidden":false,"merged":[[73,0,74,18],[110,0,110,14],[0,0,0,2],[0,3,0,18],[49,0,50,18],[1,0,2,18]]}
[null,null,null,"Posto Transformador Aéreo - Interligação Neoenergia Brasília"]
["Detalhe construtivo do poste "]
[]
[]
[{"$f":"IFERROR(VLOOKUP('Tela 4'!V46,Apoio!$A$18:$M$29,3,0),\"\")","v":""}]
[]
[]
[]
[]
[]
[]
[]
[]
[]
[]
[]
[]
[]
[]
[]
[]
[]
[]
[]
[]
[]
[]
[]
[]
[]
[]
[]
[]
[]
[]
[]
[]
[]
[]
[]
[]
[]
[]
[]
[]
[]
[]
[]
[]
["Vista das Caixas de Medição "]
[]
[]
[]
[]
[]
[]
[]
[]
[]
[]
[]
[]
[]
[]
[]
[]
[]
[]
[]
[]
[]
[]
[]
["Legenda "]
[]
[]
[1,"Cabo mensageiro, cordoalha de aço ø9,5 mm"]
[2,"Cinta de aço zincado"]
[3,{"$f":"CONCATENATE(\"Poste de \",'Tela 4'!E25,\" 11/600Dan\")","v":"Poste de  11/600Dan"}]
[4,"Braço tipo “C”"]
[5,"Isolador de ancoragem polimérico"]
[6,"Pára-raios 12 kV, 10 kA, sem centelhador, corpo polimérico, óxido de zinco"]
[7,{"$f":"CONCATENATE(\"Chave fusível, elo \",Apoio!G4)","v":"Chave fusível, elo 6K"}]
[8,"Cabo protegido de 50mm²"]
[9,{"$f":"CONCATENATE(\"Transformador de potência à óleo de \",Apoio!A4,\" KVA\")","v":"Transformador de potência à óleo de 112,5 KVA"}]
[10,"Armação secundária zincada de 01 estribo, com isolador roldana"]
[11,{"$f":"CONCATENATE(\"Condutor unipolar \",Apoio!C7,\" : Isolação \",Apoio!A7)","v":"Condutor unipolar  : Isolação 0"}]
[12,"Cabeçote ou curva de entrada de 135°"]
[13,"Arame de ferro galvanizado nº 12 BWG (2,77 mm) – 8 voltas"]
[14,{"$f":"_xlfn.CONCAT(\"Eletroduto de aço carbono com revestimento de zinco por imersão a quente (ø mínimo de \",Apoio!E2,\")\")","v":"Eletroduto de aço carbono com revestimento de zinco por imersão a quente (ø mínimo de )"}]
[15,"Caixa padrão para abrigo dos TC´s modelo TR"]
[16,"Caixa de medição polifásica – Modelo P4"]
[17,"Caixa “B” destinada a abrigar disjuntor"]
[18,"Eletroduto de PVC rosqueável (ø adequado)"]
[19,"Cabo nu 35mm²"]
[20,{"$f":"CONCATENATE(\"Haste de aterramento \",Apoio!A10,\"m\")","v":"Haste de aterramento 0m"}]
[21,"Caixa de inspeção de aterramento"]
[22,{"$f":"CONCATENATE(\"Cordoalha de cobre nú \",Apoio!D7,\"mm²\")","v":"Cordoalha de cobre nú mm²"}]
[23,{"$f":"CONCATENATE(\"FG diâmetro \",Apoio!E7,\"mm com bucha e arruela\")","v":"FG diâmetro mm com bucha e arruela"}]
[24,"FG diâmetro 32mm com bucha e arruela"]
[25,{"$f":"CONCATENATE(\"Condutor unipolar \",Apoio!B7,\" : Isolação \",Apoio!A7)","v":"Condutor unipolar 0 : Isolação 0"}]
[26,{"$f":"CONCATENATE(\"Fusível FNH \",Apoio!D10,\"A\")","v":{"$error":"#N/A"}}]
[27,{"$f":"CONCATENATE(\"Barramento de cobre: Fase = \",Apoio!C10,\"(seção transversal mínima)\")","v":{"$error":"#N/A"}}]
[28,{"$f":"CONCATENATE(\"Disjuntor tripolar In=\",Apoio!B4,\"A\")","v":"Disjuntor tripolar In=0A"}]
[29,"3xDisjuntor monopolar 20A"]
[30,"Supressor de surto mínimo 242V  mínimo 5kA."]
[]
[]
[]
[]
[]
[null,null,null,null,{"$f":"IFERROR(VLOOKUP('Tela 4'!F140,Apoio!$A$18:$M$29,3,0),\"\")","v":""}]

{"sheet":"Poste P1","index":21,"n_rows":140,"n_cols":5,"rows_kept":140,"cut":false,"hidden":false,"merged":[[78,0,79,18],[119,0,119,14],[0,0,0,2],[0,3,0,18],[1,0,2,18],[52,0,53,18],[84,1,84,16]]}
[null,null,null,"Posto Transformador Aéreo - Interligação Neoenergia Brasília"]
["Detalhe construtivo do poste "]
[]
[{"$f":"IFERROR(VLOOKUP('Tela 4'!V40,Apoio!$A$18:$M$29,3,0),\"\")","v":""}]
[]
[]
[]
[]
[]
[]
[]
[]
[]
[]
[]
[]
[]
[]
[]
[]
[]
[]
[]
[]
[]
[]
[]
[]
[]
[]
[]
[]
[]
[]
[]
[]
[]
[]
[]
[]
[]
[]
[]
[]
[]
[]
[]
[]
[]
[]
[]
[]
["Vista das Caixas de Medição "]
[]
[]
[]
[]
[]
[]
[]
[]
[]
[]
[]
[]
[]
[]
[]
[]
[]
[]
[]
[]
[]
[]
[]
[]
[]
["Legenda "]
[]
[]
[]
[1,"Cabo mensageiro, cordoalha de aço ø9,5 mm"]
[2,"Cinta de aço zincado"]
[3,{"$f":"CONCATENATE(\"Poste de \",'Tela 4'!E25,\" 11/600Dan\")","v":"Poste de  11/600Dan"}]
[4,"Braço tipo “C”"]
[5,"Isolador de ancoragem polimérico"]
[6,"Pára-raios 12 kV, 10 kA, sem centelhador, corpo polimérico, óxido de zinco"]
[7,{"$f":"CONCATENATE(\"Chave fusível, elo \",Apoio!G4)","v":"Chave fusível, elo 6K"}]
[8,"Cabo protegido de 50mm²"]
[9,{"$f":"CONCATENATE(\"Transformador de potência à óleo de \",Apoio!A4,\" KVA\")","v":"Transformador de potência à óleo de 112,5 KVA"}]
[10,"Armação secundária zincada de 01 estribo, com isolador roldana"]
[11,{"$f":"CONCATENATE(\"Condutor unipolar \",Apoio!C7,\" : Isolação \",Apoio!A7)","v":"Condutor unipolar  : Isolação 0"}]
[12,"Cabeçote ou curva de entrada de 135°"]
[13,"Arame de ferro galvanizado nº 12 BWG (2,77 mm) – 8 voltas"]
[14,{"$f":"_xlfn.CONCAT(\"Eletroduto de aço carbono com revestimento de zinco por imersão a quente (ø mínimo de \",C84,\")\")","v":"Eletroduto de aço carbono com revestimento de zinco por imersão a quente (ø mínimo de )"}]
[15,"Caixa de medição polifásica – Modelo P1"]
[18,"Eletroduto de PVC rosqueável (ø adequado)"]
[19,"Cabo nu 35mm²"]
[20,{"$f":"CONCATENATE(\"Cordoalha de cobre nú \",Apoio!D7,\"mm²\")","v":"Cordoalha de cobre nú mm²"}]
[21,"Caixa de inspeção de aterramento"]
[22,{"$f":"CONCATENATE(\"Haste de aterramento \",Apoio!A10,\"m\")","v":"Haste de aterramento 0m"}]
[25,"Caixa de inspeção de aterramento"]
[28,{"$f":"CONCATENATE(\"Disjuntor tripolar In=\",Apoio!B4,\"A\")","v":"Disjuntor tripolar In=0A"}]
[30,"Supressor de surto mínimo 242V  mínimo 5kA."]
[]
[]
[]
[]
[]
[]
[]
[]
[]
[]
[]
[]
[]
[]
[]
[null,null,null,null,{"$f":"IFERROR(VLOOKUP('Tela 4'!F138,Apoio!$A$18:$M$29,3,0),\"\")","v":""}]
[null,null,null,null,{"$f":"IFERROR(VLOOKUP('Tela 4'!#REF!,Apoio!$A$18:$M$29,3,0),\"\")","v":""}]
[]
[]
[]
[]
[]
[]
[]
[]
[]
[]
[]
[null,null,null,null,{"$f":"IFERROR(VLOOKUP('Tela 4'!F138,Apoio!$A$18:$L$226,2,0),\"\")","v":""}]
[null,null,null,null,{"$f":"IFERROR(VLOOKUP('Tela 4'!#REF!,Apoio!$A$18:$L$226,2,0),\"\")","v":""}]
[]
[]
[]
[]
[null,null,null,null,{"$f":"IFERROR(VLOOKUP('Tela 4'!F144,Apoio!$A$18:$L$226,2,0),\"\")","v":""}]

{"sheet":"Poste Poli ","index":22,"n_rows":113,"n_cols":5,"rows_kept":113,"cut":false,"hidden":false,"merged":[[111,0,111,14],[0,0,0,2],[0,3,0,18],[1,0,2,18],[49,0,50,18],[79,0,80,18],[85,1,85,16]]}
[null,null,null,"Posto Transformador Aéreo - Interligação Neoenergia Brasília"]
["Detalhe construtivo do poste "]
[]
[]
[{"$f":"IFERROR(VLOOKUP('Tela 4'!V46,Apoio!$A$18:$M$29,3,0),\"\")","v":""}]
[]
[]
[]
[]
[]
[]
[]
[]
[]
[]
[]
[]
[]
[]
[]
[]
[]
[]
[]
[]
[]
[]
[]
[]
[]
[]
[]
[]
[]
[]
[]
[]
[]
[]
[]
[]
[]
[]
[]
[]
[]
[]
[]
[]
["Vista das Caixas de Medição "]
[]
[]
[]
[]
[]
[]
[]
[]
[]
[]
[]
[]
[]
[]
[]
[]
[]
[]
[]
[]
[]
[]
[]
[]
[]
[]
[]
[]
[]
["Legenda "]
[]
[]
[]
[1,"Cabo mensageiro, cordoalha de aço ø9,5 mm"]
[2,"Cinta de aço zincado"]
[3,{"$f":"CONCATENATE(\"Poste de \",'Tela 4'!E27,\" 11/600Dan\")","v":"Poste de  11/600Dan"}]
[4,"Braço tipo “C”"]
[5,"Isolador de ancoragem polimérico"]
[6,"Pára-raios 12 kV, 10 kA, sem centelhador, corpo polimérico, óxido de zinco"]
[7,{"$f":"CONCATENATE(\"Chave fusível, elo \",Apoio!G4)","v":"Chave fusível, elo 6K"}]
[8,"Cabo protegido de 50mm²"]
[9,{"$f":"CONCATENATE(\"Transformador de potência à óleo de \",Apoio!A4,\" KVA\")","v":"Transformador de potência à óleo de 112,5 KVA"}]
[10,"Armação secundária zincada de 01 estribo, com isolador roldana"]
[11,{"$f":"CONCATENATE(\"Condutor unipolar \",Apoio!C7,\" : Isolação \",Apoio!A7)","v":"Condutor unipolar  : Isolação 0"}]
[12,"Cabeçote ou curva de entrada de 135°"]
[13,"Arame de ferro galvanizado nº 12 BWG (2,77 mm) – 8 voltas"]
[14,{"$f":"CONCATENATE(\"Eletroduto de aço carbono com revestimento de zinco por imersão a quente (ø mínimo de \",Apoio!E7,\"mm)\")","v":"Eletroduto de aço carbono com revestimento de zinco por imersão a quente (ø mínimo de mm)"}]
[15,"Caixa de medição polifásica – Modelo TE"]
[18,"Eletroduto de PVC rosqueável (ø adequado)"]
[19,"Cabo nu 35mm²"]
[20,{"$f":"CONCATENATE(\"Cordoalha de cobre nú \",Apoio!D7,\"mm²\")","v":"Cordoalha de cobre nú mm²"}]
[21,"Caixa de inspeção de aterramento"]
[22,{"$f":"CONCATENATE(\"Haste de aterramento \",Apoio!A10,\"m\")","v":"Haste de aterramento 0m"}]
[25,"Caixa de inspeção de aterramento"]
[28,{"$f":"CONCATENATE(\"Disjuntor tripolar In=\",Apoio!B4,\"A\")","v":"Disjuntor tripolar In=0A"}]
[30,"Supressor de surto mínimo 242V  mínimo 5kA."]
[]
[]
[]
[]
[]
[]
[null,null,null,null,{"$f":"IFERROR(VLOOKUP('Tela 4'!F140,Apoio!$A$18:$M$29,3,0),\"\")","v":""}]

{"sheet":"Apoio","index":23,"n_rows":114,"n_cols":14,"rows_kept":114,"cut":false,"hidden":false,"merged":[[59,1,59,4],[59,5,59,8],[74,1,74,4],[74,5,74,8]]}
["Resumo dos dados do projeto"]
[]
["Transformador Adotado","Disjuntor Escolhido","Carga instalada","Demanda de projeto","Caixa de medição escolhida","Cabo Fase/Neutro/Terra","Elo Fusível"]
[{"$f":"'Tela 4'!E14","v":112.5},{"$f":"'Tela 4'!E16","v":0},{"$f":"'Tela 3'!$G$48","v":0},{"$f":"IF('Tela 4'!E8=\"Não\",'Tela 4'!E10/'Tela 4'!E12,IF('Tela 4'!E8=\"Sim\",'Tela 4'!E10,\"\"))","v":""},{"$f":"'Tela 4'!E23:F23","v":0},{"$f":"IFERROR(VLOOKUP('Tela 4'!E16,Apoio!$B$18:$M$29,9,0),\"\")","v":""},{"$f":"VLOOKUP(A4,A18:C29,3,FALSE)","v":"6K"}]
[]
["Tipo de condutor","Cabo Fase/Neutro/Terra","Cabo Fase/Neutro","Cabo Terra","Eletroduto descida poste (AÇO)","Local"]
[{"$f":"'Tela 4'!E18","v":0},{"$f":"'Tela 4'!E21","v":0},{"$f":"IF(A7=\"PVC 70º.C (mm²)\",VLOOKUP(B7,E18:G29,2,FALSE),IF(A7=\"EPR/XLPE 90ºC (mm²)\",VLOOKUP(B7,H18:J29,2,FALSE),\"\"))","v":""},{"$f":"IF(A7=\"PVC 70º.C (mm²)\",VLOOKUP(B7,E18:G29,3,FALSE),IF(A7=\"EPR/XLPE 90ºC (mm²)\",VLOOKUP(B7,H18:J29,3,FALSE),\"\"))","v":""},{"$f":"IF(A7=\"PVC 70º.C (mm²)\",VLOOKUP(B7,E18:L29,8,FALSE),IF(A7=\"EPR/XLPE 90ºC (mm²)\",VLOOKUP(B7,H18:L29,5,FALSE),\"\"))","v":""},{"$f":"'Tela 2'!H14","v":0}]
[]
["Haste de Aterramento","Quantidade de Hastes","Barramento","Fusível","Demanda calculada"]
[{"$f":"'Tela 4'!E30","v":0},6,{"$f":"VLOOKUP(B4,B18:D29,3,FALSE)","v":{"$error":"#N/A"}},{"$f":"VLOOKUP(B4,B18:N29,13,FALSE)","v":{"$error":"#N/A"}},{"$f":"IF('Tela 4'!E8=\"sim\",'Tela 4'!E10,'Tela 4'!E10/'Tela 4'!E12)","v":{"$error":"#DIV/0!"}}]
[]
[]
["A tabela abaixo contém os valores para definição do elo fusível"]
[]
["TRANSFORMADOR","DISJUNTOR",null,null,"CONDUTOR UNIPOLAR",null,null,"ELETRODUTO",null,null,"ELETRODUTO",null,null,"Fusível"]
["Potência","In","Elo","Barramento de cobre","Isolação PVC 70 °C",null,null,"Isolação XLPE/EPR 90 °C",null,null,"PVC","AÇO"]
[null,null,null,null,"FASE/Neutro/Terra","FASE/Neutro","Terra","FASE/Neutro/Terra","FASE/Neutro","Terra"]
[15,35,"2H","1/2 x 1/16 (120A)","3#6(6)T#6","3#6(6)",6,"3#6(6)T#6","3#6(6)",6,32,25,"P1",35]
[30,50,"2H","1/2 x 1/16 (120A)","3#10(10)T#10","3#10(10)",10,"3#10(10)T#10","3#10(10)",10,32,25,"P1",50]
[45,70,"3H","1/2 x 1/16 (120A)","3#25(25)T#16","3#25(25)",16,"3#16(16)T#16","3#16(16)",16,40,32,"P1",80]
[75,100,"5H","3/4 x 3/16 (300A)","3#35(35)T#16","3#35(35)",16,"3#25(25)T#16","3#25(25)",16,60,50,"P1",100]
[75,125,"5H","3/4 x 3/16 (300A)","3#50(50)T#25","3#50(50)",25,"3#35(35)T#16","3#35(35)",16,75,65,"TE ou TR",125]
[112.5,150,"6K","3/4 x 3/16 (300A)","3#70(70)T#35","3#70(70)",35,"3#50(50)T#25","3#50(50)",25,75,65,"TE ou TR",160]
[112.5,175,"6K","3/4 x 3/16 (300A)","3#95(95)T#50","3#95(95)",50,"3#70(70)T#35","3#70(70)",35,75,65,"TE ou TR",200]
[150,200,"8K","3/4 x 3/16 (300A)","3#120(120)T#70","3#120(120)",70,"3#95(95)T#50","3#95(95)",50,85,80,"TE ou TR",200]
[150,250,"8K","3/4 x 3/16 (300A)","3#185(185)T#95","3#185(185)",95,"3#150(150)T#70","3#150(150)",70,85,80,"TR",250]
[150,250,"8K","3/4 x 3/16 (300A)","3x2x#70(70)T#70","3x2x#70(70)",70,"3x2x#50(50)T#50","3x2x#50(50)",50,"2x60","2x50","TR",250]
[225,350,"10K","1 1/2 x 1/4 (640A)","3x2x#95(95)T#95","3x2x#95(95)",95,"3x2x#70(70)T#70","3x2x#70(70)",70,"2x85","2x80","TR",350]
[300,500,"12k","1 1/2 x 1/4 (640A)","3x2x#185(185)T#185","3x2x#185(185)",185,"3x2x#150(150)T#150","3x2x#150(150)",150,"2x100","2x100","TR",500]
[]
["As tabelas abaixo contém os valores das caixas de seleção apresentadas na tela 4"]
[]
["Tabela \"Disjuntores\""]
["Transformador","Opção 1","Opção 2","Proteções Possíveis"]
[15,35,"-",{"$f":"VLOOKUP(A4,Disjuntores,2,FALSE)","v":150}]
[30,50,"-",{"$f":"VLOOKUP(A4,Disjuntores,3,FALSE)","v":175}]
[45,70,"-"]
[75,100,125]
[112.5,150,175]
[150,200,250]
[225,350,"-"]
[300,500,"-"]
[]
["Tabela \"Caixademedição\""]
["Disjuntor","Caixa 1","Caixa 2","Caixa de Medição Possível"]
[35,"Caixa P1","-",{"$f":"VLOOKUP(B4,Caixademedição,2,FALSE)","v":{"$error":"#N/A"}}]
[50,"Caixa P1","-",{"$f":"VLOOKUP(B4,Caixademedição,3,FALSE)","v":{"$error":"#N/A"}}]
[70,"Caixa P1","-"]
[100,"Caixa P1","-"]
[125,"Policarbonato Caixa TE","Conjunto metálico Cxs TR, P4 e B"]
[150,"Policarbonato Caixa TE","Conjunto metálico Cxs TR, P4 e B"]
[175,"Policarbonato Caixa TE","Conjunto metálico Cxs TR, P4 e B"]
[200,"Policarbonato Caixa TE","Conjunto metálico Cxs TR, P4 e B"]
[250,"Conjunto metálico Cxs TR, P4 e B","-"]
[250,"Conjunto metálico Cxs TR, P4 e B","-"]
[350,"Conjunto metálico Cxs TR, P4 e B","-"]
[500,"Conjunto metálico Cxs TR, P4 e B","-"]
[]
[]
["Tabela \"Cabo70\"","Opção 1",null,null,null,"Opção 2",null,null,null,"Cabos Possíveis"]
["Disjuntor","FASE/Neutro","FASE/Neutro/Terra","Terra","ELETRODUTO","FASE/Neutro","FASE/Neutro/Terra","Terra","ELETRODUTO",{"$f":"IF('Tela 4'!E18=\"PVC 70º.C (mm²)\",VLOOKUP('Tela 4'!E16,Apoio!A61:I72,3,FALSE),IF('Tela 4'!E18=\"EPR/XLPE 90ºC (mm²)\",VLOOKUP('Tela 4'!E16,Apoio!A76:I87,3,FALSE),\"\"))","v":""}]
[35,"3#6(6)","3#6(6)T#6",6,32,"-","-","-","-",{"$f":"IF('Tela 4'!E18=\"PVC 70º.C (mm²)\",VLOOKUP('Tela 4'!E16,Apoio!A61:I72,7,FALSE),IF('Tela 4'!E18=\"EPR/XLPE 90ºC (mm²)\",VLOOKUP('Tela 4'!E16,Apoio!A76:I87,7,FALSE),\"\"))","v":""}]
[50,"3#10(10)","3#10(10)T#10",10,32,"-","-","-","-"]
[70,"3#25(25)","3#25(25)T#16",16,40,"-","-","-","-"]
[100,"3#35(35)","3#35(35)T#16",16,60,"-","-","-","-"]
[125,"3#50(50)","3#50(50)T#25",25,75,"-","-","-","-"]
[150,"3#70(70)","3#70(70)T#35",35,75,"-","-","-","-"]
[175,"3#95(95)","3#95(95)T#50",50,75,"-","-","-","-"]
[200,"3#120(120)","3#120(120)T#70",70,85,"-","-","-","-"]
[250,"3#185(185)","3#185(185)T#95",95,85,"3x2x#70(70)","3x2x#70(70)T#70",70,"2x60"]
[350,"3x2x#95(95)","3x2x#95(95)T#95",95,"2x85","-","-","-","-"]
[500,"3x2x#185(185)","3x2x#185(185)T#185",185,"2x100","-","-","-","-"]
[]
[]
["Tabela \"Cabo90\"","Opção 1",null,null,null,"Opção 1"]
["Disjuntor","FASE/Neutro","FASE/Neutro/Terra","Terra","ELETRODUTO","FASE/Neutro","FASE/Neutro/Terra","Terra","ELETRODUTO"]
[35,"3#6(6)","3#6(6)T#6",6,32,"-","-","-","-"]
[50,"3#10(10)","3#10(10)T#10",10,32,"-","-","-","-"]
[70,"3#16(16)","3#16(16)T#16",16,40,"-","-","-","-"]
[100,"3#25(25)","3#25(25)T#16",16,60,"-","-","-","-"]
[125,"3#35(35)","3#35(35)T#16",16,75,"-","-","-","-"]
[150,"3#50(50)","3#50(50)T#25",25,75,"-","-","-","-"]
[175,"3#70(70)","3#70(70)T#35",35,75,"-","-","-","-"]
[200,"3#95(95)","3#95(95)T#50",50,85,"-","-","-","-"]
[250,"3#150(150)","3#150(150)T#70",70,85,"3x2x#50(50)","3x2x#50(50)T#50",50,"2x60"]
[350,"3x2x#70(70)","3x2x#70(70)T#70",70,"2x85","-","-","-","-"]
[500,"3x2x#150(150)","3x2x#150(150)T#150",150,"2x100","-","-","-","-"]
[]
["Barramento"]
["1/2\" x 1/16\" (120A)"]
["1/2\" x 1/8\" (170A)"]
["5/8\" x 1/16\" (145A)"]
["5/8\" x 1/8\" (205A)"]
["3/4\" x 1/16\" (170A)"]
["3/4\" x 1/8\" (240A)"]
["3/4\" x 3/16\" (300A)"]
["1\" x 1/8\" (310A)"]
["1\" x 3/16\" (385A)"]
["1\"x 1/4\" (445A)"]
["1\"1/2 x 1/8\" (445A)"]
["1\"1/2 x 3/16\" (550A)"]
["1\"1/2 x 1/4\" (640A)"]
["2\" x 3/16\" (710A)"]
["Não se aplica"]
[]
["Transformador ","Transformador optante"]
[15,15]
[30,30]
[45,45]
[75,75]
[112.5,112.5]
[150]
[225]
[300]

{"sheet":"VISTA CX TR","index":24,"n_rows":0,"n_cols":0,"rows_kept":0,"cut":false,"hidden":true,"merged":[]}